Department,Entity, Transaction Date, Expense Type, Expense Area, Supplier Name,Transaction number, Amount, Invoice Description
DFID,CSC,02/03/2018,Scholar Allowances,Award Costs,Scholar,PIN031499,600,
DFID,CSC,02/03/2018,Tuition Fee,Award Costs,The University of Edinburgh,PIN031500,3901.5,
DFID,CSC,02/03/2018,Tuition Fee,Award Costs,Bangor University,PIN031501,11250,
DFID,CSC,02/03/2018,Tuition Fee,Award Costs,Bangor University,PIN031501,5910,
DFID,CSC,02/03/2018,Tuition Fee,Award Costs,The University of Edinburgh,PIN031502,3080,
DFID,CSC,02/03/2018,Tuition Fee,Award Costs,The University of Birmingham,PIN031503,18450,
DFID,CSC,02/03/2018,Scholar Stipend,Award Costs,Scholar,PIN031504,2565.19,
DFID,CSC,02/03/2018,Scholar Allowances,Award Costs,Scholar,PIN031587,250,
DFID,CSC,02/03/2018,Scholar Allowances,Award Costs,Scholar,PIN031587,350,
BEIS,CSC,02/03/2018,Scholar Stipend,Award Costs,Scholar,PIN031587,5345,
BEIS,CSC,02/03/2018,Immigration Health Surcharge,Award Costs,Scholar,PIN031587,400,
BEIS,CSC,02/03/2018,Visa Costs,Award Costs,Scholar,PIN031587,235,
DFID,CSC,02/03/2018,Bank Charges,Award Costs,Mastercard Prepaid Management Services Ltd,PIN031587,65.8,
DFID,CSC,05/03/2018,Scholar Allowances,Award Costs,Scholar,PIN031505,300,
DFID,CSC,05/03/2018,Scholar Stipend,Award Costs,Scholar,PIN031505,1449.88,
DFID,CSC,05/03/2018,Bank Charges,Award Costs,Mastercard Prepaid Management Services Ltd,PIN031588,426.48,
DFID,CSC,05/03/2018,Scholar Allowances,Award Costs,Scholar,PIN031588,100,
DFID,CSC,05/03/2018,Award Support Costs,Award Costs,Scholar,PIN031588,425,
DFID,CSC,05/03/2018,Visa Costs,Award Costs,Scholar,PIN031588,235,
DFID,CSC,05/03/2018,Scholar Allowances,Award Costs,Scholar,PIN031588,914.64,
DFID,CSC,05/03/2018,Scholar Stipend,Award Costs,Scholar,PIN031588,2019,
BEIS,CSC,05/03/2018,Scholar Stipend,Award Costs,Scholar,PIN031588,6307.1,
BEIS,CSC,05/03/2018,Immigration Health Surcharge,Award Costs,Scholar,PIN031588,400,
BEIS,CSC,05/03/2018,Visa Costs,Award Costs,Scholar,PIN031588,235,
BEIS,CSC,05/03/2018,Scholar Stipend,Award Costs,Scholar,PIN031588,5184.65,
BEIS,CSC,05/03/2018,Immigration Health Surcharge,Award Costs,Scholar,PIN031588,400,
BEIS,CSC,05/03/2018,Visa Costs,Award Costs,Scholar,PIN031588,235,
BEIS,CSC,05/03/2018,Scholar Stipend,Award Costs,Scholar,PIN031588,6307.1,
BEIS,CSC,05/03/2018,Immigration Health Surcharge,Award Costs,Scholar,PIN031588,400,
BEIS,CSC,05/03/2018,Visa Costs,Award Costs,Scholar,PIN031588,235,
BEIS,CSC,05/03/2018,Scholar Stipend,Award Costs,Scholar,PIN031588,6307.1,
BEIS,CSC,05/03/2018,Immigration Health Surcharge,Award Costs,Scholar,PIN031588,200,
BEIS,CSC,05/03/2018,Visa Costs,Award Costs,Scholar,PIN031588,235,
BEIS,CSC,05/03/2018,Scholar Stipend,Award Costs,Scholar,PIN031588,6307.1,
BEIS,CSC,05/03/2018,Immigration Health Surcharge,Award Costs,Scholar,PIN031588,400,
BEIS,CSC,05/03/2018,Visa Costs,Award Costs,Scholar,PIN031588,235,
BEIS,CSC,05/03/2018,Scholar Stipend,Award Costs,Scholar,PIN031588,5131.2,
BEIS,CSC,05/03/2018,Immigration Health Surcharge,Award Costs,Scholar,PIN031588,200,
BEIS,CSC,05/03/2018,Visa Costs,Award Costs,Scholar,PIN031588,235,
DFID,CSC,08/03/2018,Bank Charges,Award Costs,Mastercard Prepaid Management Services Ltd,PIN031589,394.16,
DFID,CSC,08/03/2018,Scholar Allowances,Award Costs,Scholar,PIN031589,100,
DFID,CSC,08/03/2018,Award Support Costs,Award Costs,Scholar,PIN031589,425,
DFID,CSC,08/03/2018,Visa Costs,Award Costs,Scholar,PIN031589,89,
DFID,CSC,08/03/2018,Scholar Allowances,Award Costs,Scholar,PIN031589,914.64,
DFID,CSC,08/03/2018,Scholar Stipend,Award Costs,Scholar,PIN031589,1857.24,
BEIS,CSC,08/03/2018,Scholar Stipend,Award Costs,Scholar,PIN031589,7826.94,
BEIS,CSC,08/03/2018,Immigration Health Surcharge,Award Costs,Scholar,PIN031589,400,
BEIS,CSC,08/03/2018,Visa Costs,Award Costs,Scholar,PIN031589,235,
BEIS,CSC,08/03/2018,Scholar Stipend,Award Costs,Scholar,PIN031589,6307.1,
BEIS,CSC,08/03/2018,Immigration Health Surcharge,Award Costs,Scholar,PIN031589,400,
BEIS,CSC,08/03/2018,Visa Costs,Award Costs,Scholar,PIN031589,235,
BEIS,CSC,08/03/2018,Scholar Stipend,Award Costs,Scholar,PIN031589,6307.1,
BEIS,CSC,08/03/2018,Immigration Health Surcharge,Award Costs,Scholar,PIN031589,400,
BEIS,CSC,08/03/2018,Visa Costs,Award Costs,Scholar,PIN031589,235,
BEIS,CSC,08/03/2018,Scholar Stipend,Award Costs,Scholar,PIN031589,6307.1,
BEIS,CSC,08/03/2018,Immigration Health Surcharge,Award Costs,Scholar,PIN031589,400,
BEIS,CSC,08/03/2018,Visa Costs,Award Costs,Scholar,PIN031589,235,
BEIS,CSC,08/03/2018,Scholar Stipend,Award Costs,Scholar,PIN031589,6307.1,
BEIS,CSC,08/03/2018,Immigration Health Surcharge,Award Costs,Scholar,PIN031589,200,
BEIS,CSC,08/03/2018,Visa Costs,Award Costs,Scholar,PIN031589,235,
DFID,CSC,09/03/2018,Tuition Fee,Award Costs,University of Bradford,PIN031507,10600,
DFID,CSC,09/03/2018,Award Support Costs,Award Costs,University of Exeter,PIN031508,1127.7,
DFID,CSC,09/03/2018,Tuition Fee,Award Costs,Liverpool John Moores University,PIN031509,12360,
DFID,CSC,09/03/2018,Tuition Fee,Award Costs,Liverpool John Moores University,PIN031510,-2472,
DFID,CSC,09/03/2018,Tuition Fee,Award Costs,Liverpool John Moores University,PIN031511,12000,
DFID,CSC,09/03/2018,Tuition Fee,Award Costs,Liverpool John Moores University,PIN031512,-2400,
DFID,CSC,09/03/2018,Award Support Costs,Award Costs,The University of Leeds,PIN031513,2000,
DFID,CSC,09/03/2018,Tuition Fee,Award Costs,University of Teesside,PIN031515,9950,
DFID,CSC,09/03/2018,Tuition Fee,Award Costs,University of Teesside,PIN031516,9450,
DFID,CSC,09/03/2018,Tuition Fee,Award Costs,University of East London,PIN031517,9984,
DFID,CSC,09/03/2018,Scholar Allowances,Award Costs,Scholar,PIN031520,600,
DFID,CSC,09/03/2018,Scholar Allowances,Award Costs,Scholar,PIN031521,500,
DFID,CSC,09/03/2018,Visa Costs,Award Costs,Scholar,PIN031522,19.2,
DFID,CSC,09/03/2018,Immigration Health Surcharge,Award Costs,Scholar,PIN031522,150,
DFID,CSC,09/03/2018,Visa Costs,Award Costs,Scholar,PIN031522,457,
DFID,CSC,09/03/2018,Visa Costs,Award Costs,Scholar,PIN031523,19.2,
DFID,CSC,09/03/2018,Immigration Health Surcharge,Award Costs,Scholar,PIN031523,150,
DFID,CSC,09/03/2018,Visa Costs,Award Costs,Scholar,PIN031523,457,
DFID,CSC,09/03/2018,Scholar Allowances,Award Costs,Scholar,PIN031525,600,
DFID,CSC,09/03/2018,Tuition Fee,Award Costs,Bangor University,PIN031526,14300,
DFID,CSC,09/03/2018,Tuition Fee,Award Costs,Bangor University,PIN031526,14300,
DFID,CSC,09/03/2018,Tuition Fee,Award Costs,Bangor University,PIN031526,14300,
DFID,CSC,09/03/2018,Scholar Travel,Award Costs,University of Bristol,PIN031527,385.62,
DFID,CSC,09/03/2018,Scholar Travel,Award Costs,University of Bristol,PIN031527,364.22,
DFID,CSC,09/03/2018,Scholar Travel,Award Costs,University of Bristol,PIN031527,385.62,
DFID,CSC,09/03/2018,Scholar Travel,Award Costs,University of Bristol,PIN031527,516.22,
DFID,CSC,09/03/2018,Tuition Fee,Award Costs,University of East Anglia,PIN031529,13880,
DFID,CSC,09/03/2018,Tuition Fee,Award Costs,The University of Edinburgh,PIN031530,520,
DFID,CSC,09/03/2018,Tuition Fee,Award Costs,The University of Edinburgh,PIN031531,11680,
DFID,CSC,09/03/2018,Tuition Fee,Award Costs,University of Essex,PIN031532,10680,
DFID,CSC,09/03/2018,Scholar Travel,Award Costs,Lond Sch Hygiene & Tropical Me,PIN031533,457.7,
DFID,CSC,09/03/2018,Visa Costs,Award Costs,Lond Sch Hygiene & Tropical Me,PIN031533,105.56,
DFID,CSC,09/03/2018,Scholar Allowances,Award Costs,Lond Sch Hygiene & Tropical Me,PIN031533,225,
DFID,CSC,09/03/2018,Scholar Allowances,Award Costs,Lond Sch Hygiene & Tropical Me,PIN031533,200,
DFID,CSC,09/03/2018,Tuition Fee,Award Costs,Lond Sch Hygiene & Tropical Me,PIN031533,21500,
DFID,CSC,09/03/2018,Scholar Travel,Award Costs,Lond Sch Hygiene & Tropical Me,PIN031534,553.97,
DFID,CSC,09/03/2018,Scholar Travel,Award Costs,Lond Sch Hygiene & Tropical Me,PIN031534,648.17,
DFID,CSC,09/03/2018,Scholar Travel,Award Costs,Lond Sch Hygiene & Tropical Me,PIN031534,650,
DFID,CSC,09/03/2018,Scholar Travel,Award Costs,Lond Sch Hygiene & Tropical Me,PIN031535,561.5,
DFID,CSC,09/03/2018,Visa Costs,Award Costs,Lond Sch Hygiene & Tropical Me,PIN031535,102.66,
DFID,CSC,09/03/2018,Scholar Allowances,Award Costs,Lond Sch Hygiene & Tropical Me,PIN031535,225,
DFID,CSC,09/03/2018,Scholar Allowances,Award Costs,Lond Sch Hygiene & Tropical Me,PIN031535,200,
DFID,CSC,09/03/2018,Tuition Fee,Award Costs,Lond Sch Hygiene & Tropical Me,PIN031535,21500,
DFID,CSC,09/03/2018,Scholar Travel,Award Costs,Lond Sch Hygiene & Tropical Me,PIN031536,533.7,
DFID,CSC,09/03/2018,Visa Costs,Award Costs,Lond Sch Hygiene & Tropical Me,PIN031536,65.92,
DFID,CSC,09/03/2018,Scholar Allowances,Award Costs,Lond Sch Hygiene & Tropical Me,PIN031536,225,
DFID,CSC,09/03/2018,Scholar Allowances,Award Costs,Lond Sch Hygiene & Tropical Me,PIN031536,200,
DFID,CSC,09/03/2018,Tuition Fee,Award Costs,Lond Sch Hygiene & Tropical Me,PIN031536,21500,
DFID,CSC,09/03/2018,Scholar Travel,Award Costs,Lond Sch Hygiene & Tropical Me,PIN031537,312.5,
DFID,CSC,09/03/2018,Scholar Allowances,Award Costs,Lond Sch Hygiene & Tropical Me,PIN031537,225,
DFID,CSC,09/03/2018,Scholar Allowances,Award Costs,Lond Sch Hygiene & Tropical Me,PIN031537,200,
DFID,CSC,09/03/2018,Tuition Fee,Award Costs,Lond Sch Hygiene & Tropical Me,PIN031537,21500,
DFID,CSC,09/03/2018,Tuition Fee,Award Costs,The Open University,PIN031538,8372,
DFID,CSC,09/03/2018,Visa Costs,Award Costs,University of Sheffield,PIN031539,67.58,
DFID,CSC,09/03/2018,Scholar Travel,Award Costs,University of Sheffield,PIN031539,552.49,
DFID,CSC,09/03/2018,Scholar Travel,Award Costs,University of Sheffield,PIN031539,748.5,
DFID,CSC,09/03/2018,Tuition Fee,Award Costs,Sch Oriental & African Studies,PIN031540,15120,
DFID,CSC,09/03/2018,Visa Costs,Award Costs,"St Mary's University, Twickenham, London",PIN031541,68,
DFID,CSC,09/03/2018,Scholar Allowances,Award Costs,"St Mary's University, Twickenham, London",PIN031541,225,
DFID,CSC,09/03/2018,Scholar Allowances,Award Costs,"St Mary's University, Twickenham, London",PIN031541,200,
DFID,CSC,09/03/2018,Scholar Travel,Award Costs,"St Mary's University, Twickenham, London",PIN031541,497.6,
DFID,CSC,09/03/2018,Award Support Costs,Award Costs,The University of Warwick,PIN031542,1600,
DFID,CSC,09/03/2018,Tuition Fee,Award Costs,Bangor University,PIN031543,13563,
DFID,CSC,09/03/2018,Tuition Fee,Award Costs,The University of Edinburgh,PIN031544,25834,Tuition fees for 12 scholars
DFID,CSC,09/03/2018,Tuition Fee,Award Costs,The University of Edinburgh,PIN031544,21264,
DFID,CSC,09/03/2018,Tuition Fee,Award Costs,University of Liverpool,PIN031545,58128,Tuition fees for 12 scholars
DFID,CSC,09/03/2018,Tuition Fee,Award Costs,University of Manchester,PIN031546,2400,
DFID,CSC,09/03/2018,Tuition Fee,Award Costs,University of Manchester,PIN031547,1670,
DFID,CSC,09/03/2018,Tuition Fee,Award Costs,University of Manchester,PIN031548,4831.8,
DFID,CSC,09/03/2018,Tuition Fee,Award Costs,University of Manchester,PIN031549,4831.8,
DFID,CSC,09/03/2018,Tuition Fee,Award Costs,Sch Oriental & African Studies,PIN031550,5040,
DFID,CSC,09/03/2018,Tuition Fee,Award Costs,Sch Oriental & African Studies,PIN031551,6300,
DFID,CSC,09/03/2018,Tuition Fee,Award Costs,University of Southampton,PIN031552,18900,
DFID,CSC,09/03/2018,Bank Charges,Award Costs,Mastercard Prepaid Management Services Ltd,PIN031590,179.15,
BEIS,CSC,09/03/2018,Immigration Health Surcharge,Award Costs,Scholar,PIN031590,400,
BEIS,CSC,09/03/2018,Visa Costs,Award Costs,Scholar,PIN031590,235,
BEIS,CSC,09/03/2018,Scholar Stipend,Award Costs,Scholar,PIN031590,5558.8,
BEIS,CSC,09/03/2018,Immigration Health Surcharge,Award Costs,Scholar,PIN031590,200,
BEIS,CSC,09/03/2018,Visa Costs,Award Costs,Scholar,PIN031590,235,
BEIS,CSC,09/03/2018,Scholar Stipend,Award Costs,Scholar,PIN031590,5665.7,
BEIS,CSC,09/03/2018,Immigration Health Surcharge,Award Costs,Scholar,PIN031590,200,
BEIS,CSC,09/03/2018,Visa Costs,Award Costs,Scholar,PIN031590,235,
BEIS,CSC,09/03/2018,Scholar Stipend,Award Costs,Scholar,PIN031590,5184.65,
DFID,CSC,12/03/2018,Bank Charges,Award Costs,Mastercard Prepaid Management Services Ltd,PIN031591,300.94,
BEIS,CSC,12/03/2018,Scholar Stipend,Award Costs,Scholar,PIN031591,5612.25,
BEIS,CSC,12/03/2018,Visa Costs,Award Costs,Scholar,PIN031591,170,
BEIS,CSC,12/03/2018,Scholar Stipend,Award Costs,Scholar,PIN031591,6831.99,
BEIS,CSC,12/03/2018,Immigration Health Surcharge,Award Costs,Scholar,PIN031591,400,
BEIS,CSC,12/03/2018,Visa Costs,Award Costs,Scholar,PIN031591,235,
BEIS,CSC,12/03/2018,Scholar Stipend,Award Costs,Scholar,PIN031591,5184.65,
BEIS,CSC,12/03/2018,Immigration Health Surcharge,Award Costs,Scholar,PIN031591,200,
BEIS,CSC,12/03/2018,Visa Costs,Award Costs,Scholar,PIN031591,235,
BEIS,CSC,12/03/2018,Scholar Stipend,Award Costs,Scholar,PIN031591,5131.2,
BEIS,CSC,12/03/2018,Immigration Health Surcharge,Award Costs,Scholar,PIN031591,200,
BEIS,CSC,12/03/2018,Visa Costs,Award Costs,Scholar,PIN031591,235,
BEIS,CSC,12/03/2018,Scholar Stipend,Award Costs,Scholar,PIN031591,5024.3,
BEIS,CSC,12/03/2018,Immigration Health Surcharge,Award Costs,Scholar,PIN031591,400,
BEIS,CSC,12/03/2018,Visa Costs,Award Costs,Scholar,PIN031591,235,
BEIS,CSC,14/03/2018,Scholar Stipend,Award Costs,Scholar,PIN031592,5398.45,
BEIS,CSC,14/03/2018,Immigration Health Surcharge,Award Costs,Scholar,PIN031592,400,
BEIS,CSC,14/03/2018,Visa Costs,Award Costs,Scholar,PIN031592,235,
BEIS,CSC,14/03/2018,Scholar Stipend,Award Costs,Scholar,PIN031592,5184.65,
BEIS,CSC,14/03/2018,Immigration Health Surcharge,Award Costs,Scholar,PIN031592,400,
BEIS,CSC,14/03/2018,Visa Costs,Award Costs,Scholar,PIN031592,235,
BEIS,CSC,14/03/2018,Scholar Stipend,Award Costs,Scholar,PIN031592,5184.65,
BEIS,CSC,14/03/2018,Immigration Health Surcharge,Award Costs,Scholar,PIN031592,400,
BEIS,CSC,14/03/2018,Visa Costs,Award Costs,Scholar,PIN031592,235,
DFID,CSC,14/03/2018,Bank Charges,Award Costs,Mastercard Prepaid Management Services Ltd,PIN031592,176.73,
DFID,CSC,16/03/2018,Scholar Stipend,Award Costs,Scholar,PIN031562,1597.5,
DFID,CSC,16/03/2018,Scholar Allowances,Award Costs,Scholar,PIN031563,250,
DFID,CSC,16/03/2018,Scholar Allowances,Award Costs,Scholar,PIN031563,457,
DFID,CSC,16/03/2018,Scholar Stipend,Award Costs,Scholar,PIN031563,653,
DFID,CSC,16/03/2018,Scholar Allowances,Award Costs,Scholar,PIN031568,600,
DFID,CSC,16/03/2018,Scholar Allowances,Award Costs,Scholar,PIN031570,600,
DFID,CSC,16/03/2018,Scholar Allowances,Award Costs,Scholar,PIN031574,600,
DFID,CSC,16/03/2018,Award Support Costs,Award Costs,The University of Birmingham,PIN031575,1000,
DFID,CSC,16/03/2018,Award Support Costs,Award Costs,The University of Birmingham,PIN031576,1000,
DFID,CSC,16/03/2018,Award Support Costs,Award Costs,Conciliation Resources,PIN031577,2910,
DFID,CSC,16/03/2018,Award Support Costs,Award Costs,Conciliation Resources,PIN031577,2910,
DFID,CSC,16/03/2018,Award Support Costs,Award Costs,Conciliation Resources,PIN031577,2910,
DFID,CSC,16/03/2018,Award Support Costs,Award Costs,Conciliation Resources,PIN031577,2910,
DFID,CSC,16/03/2018,Award Support Costs,Award Costs,Conciliation Resources,PIN031577,2910,
DFID,CSC,16/03/2018,Award Support Costs,Award Costs,Conciliation Resources,PIN031577,800,
DFID,CSC,16/03/2018,Award Support Costs,Award Costs,Conciliation Resources,PIN031577,800,
DFID,CSC,16/03/2018,Award Support Costs,Award Costs,Conciliation Resources,PIN031577,800,
DFID,CSC,16/03/2018,Award Support Costs,Award Costs,Conciliation Resources,PIN031577,800,
DFID,CSC,16/03/2018,Award Support Costs,Award Costs,Conciliation Resources,PIN031577,800,
DFID,CSC,16/03/2018,Scholar Travel,Award Costs,University of Glasgow,PIN031579,509.67,
DFID,CSC,16/03/2018,Scholar Travel,Award Costs,University of Glasgow,PIN031579,526.93,
DFID,CSC,16/03/2018,Scholar Travel,Award Costs,University of Glasgow,PIN031579,517.67,
DFID,CSC,16/03/2018,Scholar Travel,Award Costs,University of Glasgow,PIN031579,700,
DFID,CSC,16/03/2018,Scholar Travel,Award Costs,University of Glasgow,PIN031579,345.95,
DFID,CSC,16/03/2018,Scholar Travel,Award Costs,University of Glasgow,PIN031579,500.87,
DFID,CSC,16/03/2018,Scholar Travel,Award Costs,University of Glasgow,PIN031579,399.87,
DFID,CSC,16/03/2018,Scholar Travel,Award Costs,University of Glasgow,PIN031579,780,
DFID,CSC,16/03/2018,Scholar Travel,Award Costs,University of Glasgow,PIN031579,463.9,
DFID,CSC,16/03/2018,Scholar Travel,Award Costs,University of Glasgow,PIN031579,700,
DFID,CSC,16/03/2018,Scholar Travel,Award Costs,University of Glasgow,PIN031579,550,
DFID,CSC,16/03/2018,Scholar Travel,Award Costs,University of Glasgow,PIN031579,780,
DFID,CSC,16/03/2018,Scholar Travel,Award Costs,University of Glasgow,PIN031579,700,
DFID,CSC,16/03/2018,Tuition Fee,Award Costs,University of Sussex,PIN031580,1973.33,
DFID,CSC,16/03/2018,Award Support Costs,Award Costs,University of Ulster,PIN031581,4000,
DFID,CSC,16/03/2018,Postage & Courier,Admin Costs,Association of Commonwealth Univs,PIN031583,699.34,
DFID,CSC,16/03/2018,Photocopying,Programme Costs,Association of Commonwealth Univs,PIN031583,12.01,
DFID,CSC,16/03/2018,Postage & Courier,Programme Costs,Association of Commonwealth Univs,PIN031583,124.77,
DFID,CSC,16/03/2018,Photocopying,Programme Costs,Association of Commonwealth Univs,PIN031583,0.06,
DFID,CSC,16/03/2018,Engagement,Admin Costs,Association of Commonwealth Univs,PIN031583,37.78,
DFID,CSC,16/03/2018,Postage & Courier,Admin Costs,Association of Commonwealth Univs,PIN031583,13.8,
DFID,CSC,16/03/2018,Postage & Courier,Admin Costs,Association of Commonwealth Univs,PIN031583,258.38,
DFID,CSC,16/03/2018,Photocopying,Programme Costs,Association of Commonwealth Univs,PIN031583,5.33,
DFID,CSC,16/03/2018,Photocopying,Programme Costs,Association of Commonwealth Univs,PIN031583,12.24,
DFID,CSC,16/03/2018,Photocopying,Admin Costs,Association of Commonwealth Univs,PIN031583,514.01,
DFID,CSC,16/03/2018,Postage & Courier,Admin Costs,Association of Commonwealth Univs,PIN031583,49.95,
DFID,CSC,16/03/2018,Engagement,Programme Costs,Association of Commonwealth Univs,PIN031583,50,
DFID,CSC,16/03/2018,Engagement,Admin Costs,Association of Commonwealth Univs,PIN031583,38.55,
DFID,CSC,16/03/2018,Engagement,Admin Costs,Association of Commonwealth Univs,PIN031583,38.73,
DFID,CSC,16/03/2018,Scholar Engagement,Programme Costs,Association of Commonwealth Univs,PIN031583,25.15,
DFID,CSC,16/03/2018,Scholar Engagement,Programme Costs,Association of Commonwealth Univs,PIN031583,25.15,
DFID,CSC,16/03/2018,Scholar Engagement,Programme Costs,Association of Commonwealth Univs,PIN031583,22.65,
DFID,CSC,16/03/2018,Scholar Engagement,Programme Costs,Association of Commonwealth Univs,PIN031583,22.65,
DFID,CSC,16/03/2018,Photocopying,Programme Costs,Association of Commonwealth Univs,PIN031583,4.24,
DFID,CSC,16/03/2018,Photocopying,Programme Costs,Association of Commonwealth Univs,PIN031583,172.23,
DFID,CSC,16/03/2018,Photocopying,Admin Costs,Association of Commonwealth Univs,PIN031583,434.52,
DFID,CSC,16/03/2018,Postage & Courier,Admin Costs,Association of Commonwealth Univs,PIN031583,46.5,
DFID,CSC,16/03/2018,Postage & Courier,Admin Costs,Association of Commonwealth Univs,PIN031583,17.66,
DFID,CSC,16/03/2018,Scholar Engagement,Programme Costs,Association of Commonwealth Univs,PIN031583,22.65,
DFID,CSC,16/03/2018,Scholar Engagement,Programme Costs,Association of Commonwealth Univs,PIN031583,22.65,
DFID,CSC,16/03/2018,Postage & Courier,Admin Costs,Association of Commonwealth Univs,PIN031583,7.98,
DFID,CSC,16/03/2018,Postage & Courier,Admin Costs,Association of Commonwealth Univs,PIN031583,74.58,
DFID,CSC,16/03/2018,Postage & Courier,Admin Costs,Association of Commonwealth Univs,PIN031583,383.69,
DFID,CSC,16/03/2018,Photocopying,Programme Costs,Association of Commonwealth Univs,PIN031583,44.16,
DFID,CSC,16/03/2018,Photocopying,Programme Costs,Association of Commonwealth Univs,PIN031583,128.78,
DFID,CSC,16/03/2018,Photocopying,Admin Costs,Association of Commonwealth Univs,PIN031583,712.82,
DFID,CSC,16/03/2018,Engagement,Programme Costs,Association of Commonwealth Univs,PIN031583,50,
DFID,CSC,16/03/2018,Engagement,Admin Costs,Association of Commonwealth Univs,PIN031583,38.53,
DFID,CSC,16/03/2018,Postage & Courier,Admin Costs,Association of Commonwealth Univs,PIN031583,225.61,
DFID,CSC,16/03/2018,Engagement,Admin Costs,Association of Commonwealth Univs,PIN031583,38.95,
DFID,CSC,16/03/2018,Postage & Courier,Admin Costs,Association of Commonwealth Univs,PIN031583,324.82,
DFID,CSC,16/03/2018,Photocopying,Programme Costs,Association of Commonwealth Univs,PIN031583,0.28,
DFID,CSC,16/03/2018,Photocopying,Programme Costs,Association of Commonwealth Univs,PIN031583,6.35,
DFID,CSC,16/03/2018,Photocopying,Programme Costs,Association of Commonwealth Univs,PIN031583,42.04,
DFID,CSC,16/03/2018,Photocopying,Admin Costs,Association of Commonwealth Univs,PIN031583,239.86,
DFID,CSC,16/03/2018,Scholar Engagement,Programme Costs,Association of Commonwealth Univs,PIN031583,27.65,
DFID,CSC,15/03/2018,Bank Charges,Award Costs,Mastercard Prepaid Management Services Ltd,PIN031605,253.31,
BEIS,CSC,15/03/2018,Scholar Stipend,Award Costs,Scholar,PIN031605,6307.1,
BEIS,CSC,15/03/2018,Immigration Health Surcharge,Award Costs,Scholar,PIN031605,400,
BEIS,CSC,15/03/2018,Visa Costs,Award Costs,Scholar,PIN031605,235,
BEIS,CSC,15/03/2018,Scholar Stipend,Award Costs,Scholar,PIN031605,5131.2,
BEIS,CSC,15/03/2018,Immigration Health Surcharge,Award Costs,Scholar,PIN031605,200,
BEIS,CSC,15/03/2018,Visa Costs,Award Costs,Scholar,PIN031605,235,
BEIS,CSC,15/03/2018,Scholar Stipend,Award Costs,Scholar,PIN031605,5184.65,
BEIS,CSC,15/03/2018,Immigration Health Surcharge,Award Costs,Scholar,PIN031605,400,
BEIS,CSC,15/03/2018,Visa Costs,Award Costs,Scholar,PIN031605,235,
BEIS,CSC,15/03/2018,Scholar Stipend,Award Costs,Scholar,PIN031605,6367.68,
BEIS,CSC,15/03/2018,Immigration Health Surcharge,Award Costs,Scholar,PIN031605,400,
BEIS,CSC,15/03/2018,Visa Costs,Award Costs,Scholar,PIN031605,235,
DFID,CSC,19/03/2018,Bank Charges,Award Costs,Mastercard Prepaid Management Services Ltd,PIN031606,536.42,
BEIS,CSC,19/03/2018,Scholar Stipend,Award Costs,Scholar,PIN031606,5184.65,
BEIS,CSC,19/03/2018,Immigration Health Surcharge,Award Costs,Scholar,PIN031606,400,
BEIS,CSC,19/03/2018,Visa Costs,Award Costs,Scholar,PIN031606,235,
BEIS,CSC,19/03/2018,Scholar Stipend,Award Costs,Scholar,PIN031606,5398.45,
BEIS,CSC,19/03/2018,Immigration Health Surcharge,Award Costs,Scholar,PIN031606,200,
BEIS,CSC,19/03/2018,Visa Costs,Award Costs,Scholar,PIN031606,235,
BEIS,CSC,19/03/2018,Scholar Stipend,Award Costs,Scholar,PIN031606,5184.65,
BEIS,CSC,19/03/2018,Immigration Health Surcharge,Award Costs,Scholar,PIN031606,400,
BEIS,CSC,19/03/2018,Visa Costs,Award Costs,Scholar,PIN031606,235,
BEIS,CSC,19/03/2018,Scholar Stipend,Award Costs,Scholar,PIN031606,5184.65,
BEIS,CSC,19/03/2018,Immigration Health Surcharge,Award Costs,Scholar,PIN031606,400,
BEIS,CSC,19/03/2018,Visa Costs,Award Costs,Scholar,PIN031606,235,
BEIS,CSC,19/03/2018,Scholar Stipend,Award Costs,Scholar,PIN031606,5184.65,
BEIS,CSC,19/03/2018,Immigration Health Surcharge,Award Costs,Scholar,PIN031606,200,
BEIS,CSC,19/03/2018,Visa Costs,Award Costs,Scholar,PIN031606,235,
BEIS,CSC,19/03/2018,Scholar Stipend,Award Costs,Scholar,PIN031606,5184.65,
BEIS,CSC,19/03/2018,Immigration Health Surcharge,Award Costs,Scholar,PIN031606,400,
BEIS,CSC,19/03/2018,Visa Costs,Award Costs,Scholar,PIN031606,235,
BEIS,CSC,19/03/2018,Scholar Stipend,Award Costs,Scholar,PIN031606,5238.1,
BEIS,CSC,19/03/2018,Immigration Health Surcharge,Award Costs,Scholar,PIN031606,400,
BEIS,CSC,19/03/2018,Visa Costs,Award Costs,Scholar,PIN031606,235,
BEIS,CSC,19/03/2018,Immigration Health Surcharge,Award Costs,Scholar,PIN031606,400,
BEIS,CSC,19/03/2018,Visa Costs,Award Costs,Scholar,PIN031606,235,
BEIS,CSC,19/03/2018,Scholar Stipend,Award Costs,Scholar,PIN031606,6367.68,
BEIS,CSC,19/03/2018,Immigration Health Surcharge,Award Costs,Scholar,PIN031606,400,
BEIS,CSC,19/03/2018,Visa Costs,Award Costs,Scholar,PIN031606,235,
BEIS,CSC,19/03/2018,Scholar Stipend,Award Costs,Scholar,PIN031606,5398.45,
DFID,CSC,22/03/2018,Bank Charges,Award Costs,Mastercard Prepaid Management Services Ltd,PIN031607,63.17,
BEIS,CSC,22/03/2018,Scholar Stipend,Award Costs,Scholar,PIN031607,5184.65,
BEIS,CSC,22/03/2018,Immigration Health Surcharge,Award Costs,Scholar,PIN031607,400,
BEIS,CSC,22/03/2018,Visa Costs,Award Costs,Scholar,PIN031607,235,
BEIS,CSC,22/03/2018,Visa Costs,Award Costs,Scholar,PIN031607,68,
BEIS,CSC,22/03/2018,Visa Costs,Award Costs,Scholar,PIN031607,109,
BEIS,CSC,22/03/2018,Visa Costs,Award Costs,Scholar,PIN031607,109,
BEIS,CSC,22/03/2018,Visa Costs,Award Costs,Scholar,PIN031607,109,
BEIS,CSC,22/03/2018,Visa Costs,Award Costs,Scholar,PIN031607,17,
BEIS,CSC,22/03/2018,Visa Costs,Award Costs,Scholar,PIN031607,17,
BEIS,CSC,22/03/2018,Visa Costs,Award Costs,Scholar,PIN031607,17,
BEIS,CSC,22/03/2018,Visa Costs,Award Costs,Scholar,PIN031607,17,
BEIS,CSC,22/03/2018,Visa Costs,Award Costs,Scholar,PIN031607,17,
BEIS,CSC,22/03/2018,Visa Costs,Award Costs,Scholar,PIN031607,17,
DFID,CSC,23/03/2018,Alumni Engagement,Programme Costs,TFW Printers,PIN031593,30090,
DFID,CSC,23/03/2018,Stakeholder Engagement,Programme Costs,Key Travel,PIN031594,1347.29,
BEIS,CSC,23/03/2018,Award Support Costs,Award Costs,Liverpool John Moores University,PIN031602,2500,
DFID,CSC,07/03/2018,Engagement,Admin Costs,NatWest CC,NOM000692,231.78,
DFID,CSC,07/03/2018,Scholar Engagement,Programme Costs,NatWest CC,NOM000692,81.3,
DFID,CSC,07/03/2018,Engagement,Programme Costs,NatWest CC,NOM000692,167.87,
DFID,CSC,23/03/2018,Bank Charges,Award Costs,Mastercard Prepaid Management Services Ltd,PIN032351,205.2,
BEIS,CSC,23/03/2018,Scholar Stipend,Award Costs,Scholar,PIN032351,5719.15,
BEIS,CSC,23/03/2018,Immigration Health Surcharge,Award Costs,Scholar,PIN032351,400,
BEIS,CSC,23/03/2018,Visa Costs,Award Costs,Scholar,PIN032351,235,
BEIS,CSC,23/03/2018,Scholar Stipend,Award Costs,Scholar,PIN032351,5238.1,
BEIS,CSC,23/03/2018,Immigration Health Surcharge,Award Costs,Scholar,PIN032351,200,
BEIS,CSC,23/03/2018,Immigration Health Surcharge,Award Costs,Scholar,PIN032351,400,
BEIS,CSC,23/03/2018,Visa Costs,Award Costs,Scholar,PIN032351,235,
BEIS,CSC,23/03/2018,Visa Costs,Award Costs,Scholar,PIN032351,75,
BEIS,CSC,23/03/2018,Visa Costs,Award Costs,Scholar,PIN032351,75,
BEIS,CSC,23/03/2018,Visa Costs,Award Costs,Scholar,PIN032351,52,
BEIS,CSC,23/03/2018,Visa Costs,Award Costs,Scholar,PIN032351,52,
BEIS,CSC,23/03/2018,Visa Costs,Award Costs,Scholar,PIN032351,52,
BEIS,CSC,23/03/2018,Visa Costs,Award Costs,Scholar,PIN032351,52,
BEIS,CSC,23/03/2018,Visa Costs,Award Costs,Scholar,PIN032351,109,
BEIS,CSC,23/03/2018,Visa Costs,Award Costs,Scholar,PIN032351,109,
BEIS,CSC,23/03/2018,Visa Costs,Award Costs,Scholar,PIN032351,109,
BEIS,CSC,23/03/2018,Visa Costs,Award Costs,Scholar,PIN032351,109,
BEIS,CSC,23/03/2018,Visa Costs,Award Costs,Scholar,PIN032351,17,
BEIS,CSC,23/03/2018,Visa Costs,Award Costs,Scholar,PIN032351,17,
BEIS,CSC,23/03/2018,Visa Costs,Award Costs,Scholar,PIN032351,17,
BEIS,CSC,23/03/2018,Visa Costs,Award Costs,Scholar,PIN032351,17,
BEIS,CSC,23/03/2018,Visa Costs,Award Costs,Scholar,PIN032351,17,
BEIS,CSC,23/03/2018,Visa Costs,Award Costs,Scholar,PIN032351,17,
BEIS,CSC,23/03/2018,Visa Costs,Award Costs,Scholar,PIN032351,17,
BEIS,CSC,23/03/2018,Visa Costs,Award Costs,Scholar,PIN032351,17,
BEIS,CSC,23/03/2018,Visa Costs,Award Costs,Scholar,PIN032351,17,
BEIS,CSC,23/03/2018,Visa Costs,Award Costs,Scholar,PIN032351,17,
BEIS,CSC,23/03/2018,Visa Costs,Award Costs,Scholar,PIN032351,64,
BEIS,CSC,23/03/2018,Visa Costs,Award Costs,Scholar,PIN032351,64,
BEIS,CSC,23/03/2018,Visa Costs,Award Costs,Scholar,PIN032351,-68,
BEIS,CSC,23/03/2018,Scholar Stipend,Award Costs,Scholar,PIN032351,-1282.5,
BEIS,CSC,23/03/2018,Scholar Stipend,Award Costs,Scholar,PIN032351,-1757.45,
BEIS,CSC,23/03/2018,Scholar Stipend,Award Costs,Scholar,PIN032351,-1122.45,
BEIS,CSC,23/03/2018,Visa Costs,Award Costs,Scholar,PIN032351,235,
BEIS,CSC,23/03/2018,Scholar Stipend,Award Costs,Scholar,PIN032351,6765.66,
BEIS,CSC,23/03/2018,Scholar Stipend,Award Costs,Scholar,PIN032351,-795.96,
DFID,CSC,26/03/2018,Bank Charges,Award Costs,Mastercard Prepaid Management Services Ltd,PIN032352,57.66,
BEIS,CSC,26/03/2018,Scholar Stipend,Award Costs,Scholar,PIN032352,5131.2,
BEIS,CSC,26/03/2018,Immigration Health Surcharge,Award Costs,Scholar,PIN032352,400,
BEIS,CSC,26/03/2018,Visa Costs,Award Costs,Scholar,PIN032352,235,
DFID,CSC,28/03/2018,Scholar Stipend,Award Costs,Scholar,PIN031609,1065,
DFID,CSC,28/03/2018,Scholar Stipend,Award Costs,Scholar,PIN031610,1306,
DFID,CSC,28/03/2018,Scholar Stipend,Award Costs,Scholar,PIN031611,1065,
DFID,CSC,28/03/2018,Scholar Stipend,Award Costs,Scholar,PIN031612,1065,
DFID,CSC,28/03/2018,Scholar Stipend,Award Costs,Scholar,PIN031613,1065,
DFID,CSC,28/03/2018,Scholar Stipend,Award Costs,Scholar,PIN031614,1065,
DFID,CSC,28/03/2018,Scholar Stipend,Award Costs,Scholar,PIN031615,1065,
DFID,CSC,28/03/2018,Scholar Stipend,Award Costs,Scholar,PIN031616,1065,
DFID,CSC,28/03/2018,Scholar Stipend,Award Costs,Scholar,PIN031617,1306,
DFID,CSC,28/03/2018,Scholar Stipend,Award Costs,Scholar,PIN031618,1065,
DFID,CSC,28/03/2018,Scholar Stipend,Award Costs,Scholar,PIN031619,1065,
DFID,CSC,28/03/2018,Scholar Stipend,Award Costs,Scholar,PIN031621,532.5,
DFID,CSC,28/03/2018,Scholar Stipend,Award Costs,Scholar,PIN031622,532.5,
DFID,CSC,28/03/2018,Scholar Stipend,Award Costs,Scholar,PIN031623,1306,
DFID,CSC,28/03/2018,Scholar Stipend,Award Costs,Scholar,PIN031624,1065,
DFID,CSC,28/03/2018,Scholar Stipend,Award Costs,Scholar,PIN031625,919.84,
DFID,CSC,28/03/2018,Scholar Stipend,Award Costs,Scholar,PIN031626,1065,
DFID,CSC,28/03/2018,Scholar Stipend,Award Costs,Scholar,PIN031627,1065,
DFID,CSC,28/03/2018,Scholar Stipend,Award Costs,Scholar,PIN031628,1065,
DFID,CSC,28/03/2018,Scholar Stipend,Award Costs,Scholar,PIN031629,1306,
DFID,CSC,28/03/2018,Scholar Stipend,Award Costs,Scholar,PIN031630,1306,
DFID,CSC,28/03/2018,Scholar Stipend,Award Costs,Scholar,PIN031631,1065,
DFID,CSC,28/03/2018,Scholar Stipend,Award Costs,Scholar,PIN031632,1065,
DFID,CSC,28/03/2018,Scholar Stipend,Award Costs,Scholar,PIN031633,1306,
DFID,CSC,28/03/2018,Scholar Stipend,Award Costs,Scholar,PIN031634,1065,
DFID,CSC,28/03/2018,Scholar Stipend,Award Costs,Scholar,PIN031635,1306,
DFID,CSC,28/03/2018,Scholar Stipend,Award Costs,Scholar,PIN031636,1065,
DFID,CSC,28/03/2018,Scholar Stipend,Award Costs,Scholar,PIN031637,1065,
DFID,CSC,28/03/2018,Scholar Stipend,Award Costs,Scholar,PIN031638,1065,
DFID,CSC,28/03/2018,Scholar Stipend,Award Costs,Scholar,PIN031639,1306,
DFID,CSC,28/03/2018,Scholar Stipend,Award Costs,Scholar,PIN031640,1065,
DFID,CSC,28/03/2018,Scholar Stipend,Award Costs,Scholar,PIN031641,1065,
DFID,CSC,28/03/2018,Scholar Stipend,Award Costs,Scholar,PIN031642,1306,
DFID,CSC,28/03/2018,Scholar Stipend,Award Costs,Scholar,PIN031643,1065,
DFID,CSC,28/03/2018,Scholar Stipend,Award Costs,Scholar,PIN031644,1065,
DFID,CSC,28/03/2018,Scholar Stipend,Award Costs,Scholar,PIN031645,1306,
DFID,CSC,28/03/2018,Scholar Stipend,Award Costs,Scholar,PIN031646,1065,
DFID,CSC,28/03/2018,Scholar Stipend,Award Costs,Scholar,PIN031647,1306,
DFID,CSC,28/03/2018,Scholar Stipend,Award Costs,Scholar,PIN031648,1065,
DFID,CSC,28/03/2018,Scholar Stipend,Award Costs,Scholar,PIN031649,1065,
DFID,CSC,28/03/2018,Scholar Stipend,Award Costs,Scholar,PIN031650,1065,
DFID,CSC,28/03/2018,Scholar Stipend,Award Costs,Scholar,PIN031651,1065,
DFID,CSC,28/03/2018,Scholar Stipend,Award Costs,Scholar,PIN031652,1065,
DFID,CSC,28/03/2018,Scholar Stipend,Award Costs,Scholar,PIN031653,1065,
DFID,CSC,28/03/2018,Scholar Stipend,Award Costs,Scholar,PIN031654,3195,
DFID,CSC,28/03/2018,Scholar Stipend,Award Costs,Scholar,PIN031655,1065,
DFID,CSC,28/03/2018,Scholar Stipend,Award Costs,Scholar,PIN031656,1065,
DFID,CSC,28/03/2018,Scholar Stipend,Award Costs,Scholar,PIN031657,3195,
DFID,CSC,28/03/2018,Scholar Stipend,Award Costs,Scholar,PIN031658,1065,
DFID,CSC,28/03/2018,Scholar Stipend,Award Costs,Scholar,PIN031659,1306,
DFID,CSC,28/03/2018,Scholar Stipend,Award Costs,Scholar,PIN031660,1306,
DFID,CSC,28/03/2018,Scholar Stipend,Award Costs,Scholar,PIN031661,1065,
DFID,CSC,28/03/2018,Scholar Stipend,Award Costs,Scholar,PIN031662,1306,
DFID,CSC,28/03/2018,Scholar Stipend,Award Costs,Scholar,PIN031663,1065,
DFID,CSC,28/03/2018,Scholar Stipend,Award Costs,Scholar,PIN031664,1065,
DFID,CSC,28/03/2018,Scholar Stipend,Award Costs,Scholar,PIN031665,1065,
DFID,CSC,28/03/2018,Scholar Stipend,Award Costs,Scholar,PIN031666,1065,
DFID,CSC,28/03/2018,Scholar Stipend,Award Costs,Scholar,PIN031667,1065,
DFID,CSC,28/03/2018,Scholar Stipend,Award Costs,Scholar,PIN031668,1306,
DFID,CSC,28/03/2018,Scholar Stipend,Award Costs,Scholar,PIN031669,1065,
DFID,CSC,28/03/2018,Scholar Stipend,Award Costs,Scholar,PIN031670,1065,
DFID,CSC,28/03/2018,Scholar Stipend,Award Costs,Scholar,PIN031671,1065,
DFID,CSC,28/03/2018,Scholar Stipend,Award Costs,Scholar,PIN031672,3195,
DFID,CSC,28/03/2018,Scholar Stipend,Award Costs,Scholar,PIN031673,1306,
DFID,CSC,28/03/2018,Scholar Stipend,Award Costs,Scholar,PIN031674,1306,
DFID,CSC,28/03/2018,Scholar Stipend,Award Costs,Scholar,PIN031675,1306,
DFID,CSC,28/03/2018,Scholar Stipend,Award Costs,Scholar,PIN031676,1306,
DFID,CSC,28/03/2018,Scholar Stipend,Award Costs,Scholar,PIN031677,1306,
DFID,CSC,28/03/2018,Scholar Stipend,Award Costs,Scholar,PIN031678,1065,
DFID,CSC,28/03/2018,Scholar Stipend,Award Costs,Scholar,PIN031679,1065,
DFID,CSC,28/03/2018,Scholar Stipend,Award Costs,Scholar,PIN031680,1065,
DFID,CSC,28/03/2018,Scholar Stipend,Award Costs,Scholar,PIN031681,1065,
DFID,CSC,28/03/2018,Scholar Stipend,Award Costs,Scholar,PIN031682,3195,
DFID,CSC,28/03/2018,Scholar Stipend,Award Costs,Scholar,PIN031683,1065,
DFID,CSC,28/03/2018,Scholar Stipend,Award Costs,Scholar,PIN031685,532.5,
DFID,CSC,28/03/2018,Scholar Stipend,Award Costs,Scholar,PIN031686,1065,
DFID,CSC,28/03/2018,Scholar Stipend,Award Costs,Scholar,PIN031687,1065,
DFID,CSC,28/03/2018,Scholar Stipend,Award Costs,Scholar,PIN031688,1065,
DFID,CSC,28/03/2018,Scholar Stipend,Award Costs,Scholar,PIN031689,3195,
DFID,CSC,28/03/2018,Scholar Stipend,Award Costs,Scholar,PIN031690,1065,
DFID,CSC,28/03/2018,Scholar Stipend,Award Costs,Scholar,PIN031691,1065,
DFID,CSC,28/03/2018,Scholar Stipend,Award Costs,Scholar,PIN031692,1065,
DFID,CSC,28/03/2018,Scholar Stipend,Award Costs,Scholar,PIN031693,1306,
DFID,CSC,28/03/2018,Scholar Stipend,Award Costs,Scholar,PIN031694,1065,
DFID,CSC,28/03/2018,Scholar Stipend,Award Costs,Scholar,PIN031695,3195,
DFID,CSC,28/03/2018,Scholar Stipend,Award Costs,Scholar,PIN031696,1065,
DFID,CSC,28/03/2018,Scholar Stipend,Award Costs,Scholar,PIN031697,1065,
DFID,CSC,28/03/2018,Scholar Stipend,Award Costs,Scholar,PIN031698,1065,
DFID,CSC,28/03/2018,Scholar Stipend,Award Costs,Scholar,PIN031699,3195,
DFID,CSC,28/03/2018,Scholar Stipend,Award Costs,Scholar,PIN031700,1065,
DFID,CSC,28/03/2018,Scholar Stipend,Award Costs,Scholar,PIN031702,1065,
DFID,CSC,28/03/2018,Scholar Stipend,Award Costs,Scholar,PIN031703,1065,
DFID,CSC,28/03/2018,Scholar Stipend,Award Costs,Scholar,PIN031704,1627,
DFID,CSC,28/03/2018,Scholar Stipend,Award Costs,Scholar,PIN031705,1627,
DFID,CSC,28/03/2018,Scholar Stipend,Award Costs,Scholar,PIN031706,1229.43,
DFID,CSC,28/03/2018,Scholar Stipend,Award Costs,Scholar,PIN031707,532.5,
DFID,CSC,28/03/2018,Scholar Stipend,Award Costs,Scholar,PIN031709,1065,
DFID,CSC,28/03/2018,Scholar Stipend,Award Costs,Scholar,PIN031710,1065,
DFID,CSC,28/03/2018,Scholar Stipend,Award Costs,Scholar,PIN031711,1065,
DFID,CSC,28/03/2018,Scholar Stipend,Award Costs,Scholar,PIN031712,1065,
DFID,CSC,28/03/2018,Scholar Stipend,Award Costs,Scholar,PIN031713,1065,
DFID,CSC,28/03/2018,Scholar Stipend,Award Costs,Scholar,PIN031714,1065,
DFID,CSC,28/03/2018,Scholar Stipend,Award Costs,Scholar,PIN031715,3195,
DFID,CSC,28/03/2018,Scholar Stipend,Award Costs,Scholar,PIN031716,1065,
DFID,CSC,28/03/2018,Scholar Stipend,Award Costs,Scholar,PIN031717,1306,
DFID,CSC,28/03/2018,Scholar Stipend,Award Costs,Scholar,PIN031718,1065,
DFID,CSC,28/03/2018,Scholar Stipend,Award Costs,Scholar,PIN031719,1065,
DFID,CSC,28/03/2018,Scholar Stipend,Award Costs,Scholar,PIN031720,1113.03,
DFID,CSC,28/03/2018,Scholar Stipend,Award Costs,Scholar,PIN031721,2019,
DFID,CSC,28/03/2018,Scholar Stipend,Award Costs,Scholar,PIN031722,1065,
DFID,CSC,28/03/2018,Scholar Stipend,Award Costs,Scholar,PIN031723,1306,
DFID,CSC,28/03/2018,Scholar Stipend,Award Costs,Scholar,PIN031724,1065,
DFID,CSC,28/03/2018,Scholar Stipend,Award Costs,Scholar,PIN031725,1065,
DFID,CSC,28/03/2018,Scholar Stipend,Award Costs,Scholar,PIN031726,1065,
DFID,CSC,28/03/2018,Scholar Stipend,Award Costs,Scholar,PIN031727,1065,
DFID,CSC,28/03/2018,Scholar Stipend,Award Costs,Scholar,PIN031728,1306,
DFID,CSC,28/03/2018,Scholar Stipend,Award Costs,Scholar,PIN031729,1306,
DFID,CSC,28/03/2018,Scholar Stipend,Award Costs,Scholar,PIN031730,1065,
DFID,CSC,28/03/2018,Scholar Stipend,Award Costs,Scholar,PIN031731,979.71,
DFID,CSC,28/03/2018,Scholar Stipend,Award Costs,Scholar,PIN031732,1065,
DFID,CSC,28/03/2018,Scholar Stipend,Award Costs,Scholar,PIN031733,3195,
DFID,CSC,28/03/2018,Scholar Stipend,Award Costs,Scholar,PIN031734,1065,
DFID,CSC,28/03/2018,Scholar Stipend,Award Costs,Scholar,PIN031735,1065,
DFID,CSC,28/03/2018,Scholar Stipend,Award Costs,Scholar,PIN031736,1065,
DFID,CSC,28/03/2018,Scholar Stipend,Award Costs,Scholar,PIN031738,532.5,
DFID,CSC,28/03/2018,Scholar Stipend,Award Costs,Scholar,PIN031739,1065,
DFID,CSC,28/03/2018,Scholar Stipend,Award Costs,Scholar,PIN031740,1065,
DFID,CSC,28/03/2018,Scholar Stipend,Award Costs,Scholar,PIN031741,1065,
DFID,CSC,28/03/2018,Scholar Stipend,Award Costs,Scholar,PIN031742,1065,
DFID,CSC,28/03/2018,Scholar Stipend,Award Costs,Scholar,PIN031743,1065,
DFID,CSC,28/03/2018,Scholar Stipend,Award Costs,Scholar,PIN031744,1065,
DFID,CSC,28/03/2018,Scholar Stipend,Award Costs,Scholar,PIN031745,1065,
DFID,CSC,28/03/2018,Scholar Stipend,Award Costs,Scholar,PIN031746,1065,
DFID,CSC,28/03/2018,Scholar Stipend,Award Costs,Scholar,PIN031747,1065,
DFID,CSC,28/03/2018,Scholar Stipend,Award Costs,Scholar,PIN031748,1306,
DFID,CSC,28/03/2018,Scholar Stipend,Award Costs,Scholar,PIN031749,1065,
DFID,CSC,28/03/2018,Scholar Stipend,Award Costs,Scholar,PIN031750,1065,
DFID,CSC,28/03/2018,Scholar Stipend,Award Costs,Scholar,PIN031751,1306,
DFID,CSC,28/03/2018,Scholar Stipend,Award Costs,Scholar,PIN031752,1065,
DFID,CSC,28/03/2018,Scholar Stipend,Award Costs,Scholar,PIN031753,3195,
DFID,CSC,28/03/2018,Scholar Stipend,Award Costs,Scholar,PIN031754,1065,
DFID,CSC,28/03/2018,Scholar Stipend,Award Costs,Scholar,PIN031755,1065,
DFID,CSC,28/03/2018,Scholar Stipend,Award Costs,Scholar,PIN031756,1306,
DFID,CSC,28/03/2018,Scholar Stipend,Award Costs,Scholar,PIN031757,1306,
DFID,CSC,28/03/2018,Scholar Stipend,Award Costs,Scholar,PIN031758,3918,
DFID,CSC,28/03/2018,Scholar Stipend,Award Costs,Scholar,PIN031759,1306,
DFID,CSC,28/03/2018,Scholar Stipend,Award Costs,Scholar,PIN031760,1306,
DFID,CSC,28/03/2018,Scholar Stipend,Award Costs,Scholar,PIN031761,1065,
DFID,CSC,28/03/2018,Scholar Stipend,Award Costs,Scholar,PIN031762,1306,
DFID,CSC,28/03/2018,Scholar Stipend,Award Costs,Scholar,PIN031763,3195,
DFID,CSC,28/03/2018,Scholar Stipend,Award Costs,Scholar,PIN031764,1306,
DFID,CSC,28/03/2018,Scholar Stipend,Award Costs,Scholar,PIN031765,1306,
DFID,CSC,28/03/2018,Scholar Stipend,Award Costs,Scholar,PIN031766,1065,
DFID,CSC,28/03/2018,Scholar Stipend,Award Costs,Scholar,PIN031767,1065,
DFID,CSC,28/03/2018,Scholar Stipend,Award Costs,Scholar,PIN031768,1065,
DFID,CSC,28/03/2018,Scholar Stipend,Award Costs,Scholar,PIN031769,1065,
DFID,CSC,28/03/2018,Scholar Stipend,Award Costs,Scholar,PIN031770,1306,
DFID,CSC,28/03/2018,Scholar Stipend,Award Costs,Scholar,PIN031771,1065,
DFID,CSC,28/03/2018,Scholar Stipend,Award Costs,Scholar,PIN031772,1065,
DFID,CSC,28/03/2018,Scholar Stipend,Award Costs,Scholar,PIN031773,1065,
DFID,CSC,28/03/2018,Scholar Stipend,Award Costs,Scholar,PIN031774,1065,
DFID,CSC,28/03/2018,Scholar Stipend,Award Costs,Scholar,PIN031775,1065,
DFID,CSC,28/03/2018,Scholar Stipend,Award Costs,Scholar,PIN031776,1065,
DFID,CSC,28/03/2018,Scholar Stipend,Award Costs,Scholar,PIN031779,532.5,
DFID,CSC,28/03/2018,Scholar Stipend,Award Costs,Scholar,PIN031780,1065,
DFID,CSC,28/03/2018,Scholar Stipend,Award Costs,Scholar,PIN031781,1065,
DFID,CSC,28/03/2018,Scholar Stipend,Award Costs,Scholar,PIN031782,1065,
DFID,CSC,28/03/2018,Scholar Stipend,Award Costs,Scholar,PIN031783,1306,
DFID,CSC,28/03/2018,Scholar Stipend,Award Costs,Scholar,PIN031784,1065,
DFID,CSC,28/03/2018,Scholar Stipend,Award Costs,Scholar,PIN031785,1065,
DFID,CSC,28/03/2018,Scholar Stipend,Award Costs,Scholar,PIN031786,1065,
DFID,CSC,28/03/2018,Scholar Stipend,Award Costs,Scholar,PIN031787,1065,
DFID,CSC,28/03/2018,Scholar Stipend,Award Costs,Scholar,PIN031788,1065,
DFID,CSC,28/03/2018,Scholar Stipend,Award Costs,Scholar,PIN031789,1306,
DFID,CSC,28/03/2018,Scholar Stipend,Award Costs,Scholar,PIN031790,1065,
DFID,CSC,28/03/2018,Scholar Stipend,Award Costs,Scholar,PIN031791,1065,
DFID,CSC,28/03/2018,Scholar Stipend,Award Costs,Scholar,PIN031792,1065,
DFID,CSC,28/03/2018,Scholar Stipend,Award Costs,Scholar,PIN031793,1065,
DFID,CSC,28/03/2018,Scholar Stipend,Award Costs,Scholar,PIN031794,1065,
DFID,CSC,28/03/2018,Scholar Stipend,Award Costs,Scholar,PIN031795,1065,
DFID,CSC,28/03/2018,Scholar Stipend,Award Costs,Scholar,PIN031796,1065,
DFID,CSC,28/03/2018,Scholar Stipend,Award Costs,Scholar,PIN031797,3195,
DFID,CSC,28/03/2018,Scholar Stipend,Award Costs,Scholar,PIN031798,1065,
DFID,CSC,28/03/2018,Scholar Stipend,Award Costs,Scholar,PIN031799,1306,
DFID,CSC,28/03/2018,Scholar Stipend,Award Costs,Scholar,PIN031800,1065,
DFID,CSC,28/03/2018,Scholar Stipend,Award Costs,Scholar,PIN031801,3195,
DFID,CSC,28/03/2018,Scholar Stipend,Award Costs,Scholar,PIN031802,1065,
DFID,CSC,28/03/2018,Scholar Stipend,Award Costs,Scholar,PIN031803,1065,
DFID,CSC,28/03/2018,Scholar Stipend,Award Costs,Scholar,PIN031804,1065,
DFID,CSC,28/03/2018,Scholar Stipend,Award Costs,Scholar,PIN031805,1306,
DFID,CSC,28/03/2018,Scholar Stipend,Award Costs,Scholar,PIN031806,1065,
DFID,CSC,28/03/2018,Scholar Stipend,Award Costs,Scholar,PIN031807,1306,
DFID,CSC,28/03/2018,Scholar Stipend,Award Costs,Scholar,PIN031808,1065,
DFID,CSC,28/03/2018,Scholar Stipend,Award Costs,Scholar,PIN031809,1306,
DFID,CSC,28/03/2018,Scholar Stipend,Award Costs,Scholar,PIN031810,1065,
DFID,CSC,28/03/2018,Scholar Stipend,Award Costs,Scholar,PIN031811,1065,
DFID,CSC,28/03/2018,Scholar Stipend,Award Costs,Scholar,PIN031812,1065,
DFID,CSC,28/03/2018,Scholar Stipend,Award Costs,Scholar,PIN031813,1065,
DFID,CSC,28/03/2018,Scholar Stipend,Award Costs,Scholar,PIN031814,1306,
DFID,CSC,28/03/2018,Scholar Stipend,Award Costs,Scholar,PIN031815,3195,
DFID,CSC,28/03/2018,Scholar Stipend,Award Costs,Scholar,PIN031816,1065,
DFID,CSC,28/03/2018,Scholar Stipend,Award Costs,Scholar,PIN031817,1065,
DFID,CSC,28/03/2018,Scholar Stipend,Award Costs,Scholar,PIN031818,3195,
DFID,CSC,28/03/2018,Scholar Stipend,Award Costs,Scholar,PIN031819,1065,
DFID,CSC,28/03/2018,Scholar Stipend,Award Costs,Scholar,PIN031820,1065,
DFID,CSC,28/03/2018,Scholar Stipend,Award Costs,Scholar,PIN031822,1065,
DFID,CSC,28/03/2018,Scholar Stipend,Award Costs,Scholar,PIN031823,1065,
DFID,CSC,28/03/2018,Scholar Stipend,Award Costs,Scholar,PIN031824,1065,
DFID,CSC,28/03/2018,Scholar Stipend,Award Costs,Scholar,PIN031825,1306,
DFID,CSC,28/03/2018,Scholar Stipend,Award Costs,Scholar,PIN031826,1065,
DFID,CSC,28/03/2018,Scholar Stipend,Award Costs,Scholar,PIN031827,1065,
DFID,CSC,28/03/2018,Scholar Stipend,Award Costs,Scholar,PIN031828,1065,
DFID,CSC,28/03/2018,Scholar Stipend,Award Costs,Scholar,PIN031829,3195,
DFID,CSC,28/03/2018,Scholar Stipend,Award Costs,Scholar,PIN031830,1065,
DFID,CSC,28/03/2018,Scholar Stipend,Award Costs,Scholar,PIN031831,1065,
DFID,CSC,28/03/2018,Scholar Stipend,Award Costs,Scholar,PIN031832,1065,
DFID,CSC,28/03/2018,Scholar Stipend,Award Costs,Scholar,PIN031833,1065,
DFID,CSC,28/03/2018,Scholar Stipend,Award Costs,Scholar,PIN031834,1065,
DFID,CSC,28/03/2018,Scholar Stipend,Award Costs,Scholar,PIN031835,1065,
DFID,CSC,28/03/2018,Scholar Stipend,Award Costs,Scholar,PIN031836,1065,
DFID,CSC,28/03/2018,Scholar Stipend,Award Costs,Scholar,PIN031837,653,
DFID,CSC,28/03/2018,Scholar Stipend,Award Costs,Scholar,PIN031838,1065,
DFID,CSC,28/03/2018,Scholar Stipend,Award Costs,Scholar,PIN031839,1065,
DFID,CSC,28/03/2018,Scholar Stipend,Award Costs,Scholar,PIN031840,1065,
DFID,CSC,28/03/2018,Scholar Stipend,Award Costs,Scholar,PIN031841,3195,
DFID,CSC,28/03/2018,Scholar Stipend,Award Costs,Scholar,PIN031842,3195,
DFID,CSC,28/03/2018,Scholar Stipend,Award Costs,Scholar,PIN031843,1065,
DFID,CSC,28/03/2018,Scholar Stipend,Award Costs,Scholar,PIN031844,1065,
DFID,CSC,28/03/2018,Scholar Stipend,Award Costs,Scholar,PIN031845,1065,
DFID,CSC,28/03/2018,Scholar Stipend,Award Costs,Scholar,PIN031846,1306,
DFID,CSC,28/03/2018,Scholar Stipend,Award Costs,Scholar,PIN031847,1065,
DFID,CSC,28/03/2018,Scholar Stipend,Award Costs,Scholar,PIN031848,1306,
DFID,CSC,28/03/2018,Scholar Stipend,Award Costs,Scholar,PIN031849,1065,
DFID,CSC,28/03/2018,Scholar Stipend,Award Costs,Scholar,PIN031850,1065,
DFID,CSC,28/03/2018,Scholar Stipend,Award Costs,Scholar,PIN031851,1306,
DFID,CSC,28/03/2018,Scholar Stipend,Award Costs,Scholar,PIN031852,1065,
DFID,CSC,28/03/2018,Scholar Stipend,Award Costs,Scholar,PIN031853,1065,
DFID,CSC,28/03/2018,Scholar Stipend,Award Costs,Scholar,PIN031854,1065,
DFID,CSC,28/03/2018,Scholar Stipend,Award Costs,Scholar,PIN031855,1306,
DFID,CSC,28/03/2018,Scholar Stipend,Award Costs,Scholar,PIN031856,3918,
DFID,CSC,28/03/2018,Scholar Stipend,Award Costs,Scholar,PIN031857,3195,
DFID,CSC,28/03/2018,Scholar Stipend,Award Costs,Scholar,PIN031858,1065,
DFID,CSC,28/03/2018,Scholar Stipend,Award Costs,Scholar,PIN031859,1065,
DFID,CSC,28/03/2018,Scholar Stipend,Award Costs,Scholar,PIN031860,1065,
DFID,CSC,28/03/2018,Scholar Stipend,Award Costs,Scholar,PIN031861,1306,
DFID,CSC,28/03/2018,Scholar Stipend,Award Costs,Scholar,PIN031862,1306,
DFID,CSC,28/03/2018,Scholar Stipend,Award Costs,Scholar,PIN031863,1065,
DFID,CSC,28/03/2018,Scholar Stipend,Award Costs,Scholar,PIN031865,1065,
DFID,CSC,28/03/2018,Scholar Stipend,Award Costs,Scholar,PIN031866,1065,
DFID,CSC,28/03/2018,Scholar Stipend,Award Costs,Scholar,PIN031867,1065,
DFID,CSC,28/03/2018,Scholar Stipend,Award Costs,Scholar,PIN031868,1306,
DFID,CSC,28/03/2018,Scholar Stipend,Award Costs,Scholar,PIN031869,1065,
DFID,CSC,28/03/2018,Scholar Stipend,Award Costs,Scholar,PIN031870,1065,
DFID,CSC,28/03/2018,Scholar Stipend,Award Costs,Scholar,PIN031871,532.5,
DFID,CSC,28/03/2018,Scholar Stipend,Award Costs,Scholar,PIN031872,1065,
DFID,CSC,28/03/2018,Scholar Stipend,Award Costs,Scholar,PIN031873,1065,
DFID,CSC,28/03/2018,Scholar Stipend,Award Costs,Scholar,PIN031874,1306,
DFID,CSC,28/03/2018,Scholar Stipend,Award Costs,Scholar,PIN031875,1065,
DFID,CSC,28/03/2018,Scholar Stipend,Award Costs,Scholar,PIN031876,1065,
DFID,CSC,28/03/2018,Scholar Stipend,Award Costs,Scholar,PIN031877,532.5,
DFID,CSC,28/03/2018,Scholar Stipend,Award Costs,Scholar,PIN031878,532.5,
DFID,CSC,28/03/2018,Scholar Stipend,Award Costs,Scholar,PIN031879,1065,
DFID,CSC,28/03/2018,Scholar Stipend,Award Costs,Scholar,PIN031880,1306,
DFID,CSC,28/03/2018,Scholar Stipend,Award Costs,Scholar,PIN031881,1065,
DFID,CSC,28/03/2018,Scholar Stipend,Award Costs,Scholar,PIN031882,1065,
DFID,CSC,28/03/2018,Scholar Stipend,Award Costs,Scholar,PIN031883,1065,
DFID,CSC,28/03/2018,Scholar Stipend,Award Costs,Scholar,PIN031884,1065,
DFID,CSC,28/03/2018,Scholar Stipend,Award Costs,Scholar,PIN031885,1065,
DFID,CSC,28/03/2018,Scholar Stipend,Award Costs,Scholar,PIN031886,1065,
DFID,CSC,28/03/2018,Scholar Stipend,Award Costs,Scholar,PIN031887,1065,
DFID,CSC,28/03/2018,Scholar Stipend,Award Costs,Scholar,PIN031888,1065,
DFID,CSC,28/03/2018,Scholar Stipend,Award Costs,Scholar,PIN031889,1065,
DFID,CSC,28/03/2018,Scholar Stipend,Award Costs,Scholar,PIN031890,1065,
DFID,CSC,28/03/2018,Scholar Stipend,Award Costs,Scholar,PIN031891,1627,
DFID,CSC,28/03/2018,Scholar Stipend,Award Costs,Scholar,PIN031892,2019,
DFID,CSC,28/03/2018,Scholar Stipend,Award Costs,Scholar,PIN031893,1627,
DFID,CSC,28/03/2018,Scholar Stipend,Award Costs,Scholar,PIN031894,1627,
DFID,CSC,28/03/2018,Scholar Stipend,Award Costs,Scholar,PIN031895,1627,
DFID,CSC,28/03/2018,Scholar Stipend,Award Costs,Scholar,PIN031896,2019,
DFID,CSC,28/03/2018,Scholar Stipend,Award Costs,Scholar,PIN031897,2019,
DFID,CSC,28/03/2018,Scholar Stipend,Award Costs,Scholar,PIN031898,1065,
DFID,CSC,28/03/2018,Scholar Stipend,Award Costs,Scholar,PIN031899,1065,
DFID,CSC,28/03/2018,Scholar Stipend,Award Costs,Scholar,PIN031900,1065,
DFID,CSC,28/03/2018,Scholar Stipend,Award Costs,Scholar,PIN031901,1065,
DFID,CSC,28/03/2018,Scholar Stipend,Award Costs,Scholar,PIN031902,1065,
DFID,CSC,28/03/2018,Scholar Stipend,Award Costs,Scholar,PIN031903,1065,
DFID,CSC,28/03/2018,Scholar Stipend,Award Costs,Scholar,PIN031905,532.5,
DFID,CSC,28/03/2018,Scholar Stipend,Award Costs,Scholar,PIN031906,532.5,
DFID,CSC,28/03/2018,Scholar Stipend,Award Costs,Scholar,PIN031907,532.5,
DFID,CSC,28/03/2018,Scholar Stipend,Award Costs,Scholar,PIN031908,532.5,
DFID,CSC,28/03/2018,Scholar Stipend,Award Costs,Scholar,PIN031909,828.08,
DFID,CSC,28/03/2018,Scholar Stipend,Award Costs,Scholar,PIN031910,1065,
DFID,CSC,28/03/2018,Scholar Stipend,Award Costs,Scholar,PIN031911,1065,
DFID,CSC,28/03/2018,Scholar Stipend,Award Costs,Scholar,PIN031912,1065,
DFID,CSC,28/03/2018,Scholar Stipend,Award Costs,Scholar,PIN031913,1065,
DFID,CSC,28/03/2018,Scholar Stipend,Award Costs,Scholar,PIN031914,1065,
DFID,CSC,28/03/2018,Scholar Stipend,Award Costs,Scholar,PIN031915,1306,
DFID,CSC,28/03/2018,Scholar Stipend,Award Costs,Scholar,PIN031916,1065,
DFID,CSC,28/03/2018,Scholar Stipend,Award Costs,Scholar,PIN031917,1065,
DFID,CSC,28/03/2018,Scholar Stipend,Award Costs,Scholar,PIN031918,1065,
DFID,CSC,28/03/2018,Scholar Stipend,Award Costs,Scholar,PIN031919,1065,
DFID,CSC,28/03/2018,Scholar Stipend,Award Costs,Scholar,PIN031920,1065,
DFID,CSC,28/03/2018,Scholar Stipend,Award Costs,Scholar,PIN031921,1065,
DFID,CSC,28/03/2018,Scholar Stipend,Award Costs,Scholar,PIN031922,1065,
DFID,CSC,28/03/2018,Scholar Stipend,Award Costs,Scholar,PIN031923,1065,
DFID,CSC,28/03/2018,Scholar Stipend,Award Costs,Scholar,PIN031924,1065,
DFID,CSC,28/03/2018,Scholar Stipend,Award Costs,Scholar,PIN031925,1065,
DFID,CSC,28/03/2018,Scholar Stipend,Award Costs,Scholar,PIN031926,1065,
DFID,CSC,28/03/2018,Scholar Stipend,Award Costs,Scholar,PIN031927,1306,
DFID,CSC,28/03/2018,Scholar Stipend,Award Costs,Scholar,PIN031928,3195,
DFID,CSC,28/03/2018,Scholar Stipend,Award Costs,Scholar,PIN031929,1065,
DFID,CSC,28/03/2018,Scholar Stipend,Award Costs,Scholar,PIN031930,1065,
DFID,CSC,28/03/2018,Scholar Stipend,Award Costs,Scholar,PIN031931,1065,
DFID,CSC,28/03/2018,Scholar Stipend,Award Costs,Scholar,PIN031932,1306,
DFID,CSC,28/03/2018,Scholar Stipend,Award Costs,Scholar,PIN031933,1065,
DFID,CSC,28/03/2018,Scholar Stipend,Award Costs,Scholar,PIN031934,1306,
DFID,CSC,28/03/2018,Scholar Stipend,Award Costs,Scholar,PIN031935,1065,
DFID,CSC,28/03/2018,Scholar Stipend,Award Costs,Scholar,PIN031936,1065,
DFID,CSC,28/03/2018,Scholar Stipend,Award Costs,Scholar,PIN031937,1065,
DFID,CSC,28/03/2018,Scholar Stipend,Award Costs,Scholar,PIN031938,1065,
DFID,CSC,28/03/2018,Scholar Stipend,Award Costs,Scholar,PIN031939,1065,
DFID,CSC,28/03/2018,Scholar Stipend,Award Costs,Scholar,PIN031940,1065,
DFID,CSC,28/03/2018,Scholar Stipend,Award Costs,Scholar,PIN031941,1065,
DFID,CSC,28/03/2018,Scholar Stipend,Award Costs,Scholar,PIN031942,1627,
DFID,CSC,28/03/2018,Scholar Stipend,Award Costs,Scholar,PIN031943,1065,
DFID,CSC,28/03/2018,Scholar Stipend,Award Costs,Scholar,PIN031944,3195,
DFID,CSC,28/03/2018,Scholar Stipend,Award Costs,Scholar,PIN031945,1065,
DFID,CSC,28/03/2018,Scholar Stipend,Award Costs,Scholar,PIN031946,1065,
DFID,CSC,28/03/2018,Scholar Stipend,Award Costs,Scholar,PIN031947,3195,
DFID,CSC,28/03/2018,Scholar Stipend,Award Costs,Scholar,PIN031949,1065,
DFID,CSC,28/03/2018,Scholar Stipend,Award Costs,Scholar,PIN031950,1065,
DFID,CSC,28/03/2018,Scholar Stipend,Award Costs,Scholar,PIN031951,1306,
DFID,CSC,28/03/2018,Scholar Stipend,Award Costs,Scholar,PIN031952,1306,
DFID,CSC,28/03/2018,Scholar Stipend,Award Costs,Scholar,PIN031953,1065,
DFID,CSC,28/03/2018,Scholar Stipend,Award Costs,Scholar,PIN031954,3918,
DFID,CSC,28/03/2018,Scholar Stipend,Award Costs,Scholar,PIN031955,1065,
DFID,CSC,28/03/2018,Scholar Stipend,Award Costs,Scholar,PIN031956,1065,
DFID,CSC,28/03/2018,Scholar Stipend,Award Costs,Scholar,PIN031957,1065,
DFID,CSC,28/03/2018,Scholar Stipend,Award Costs,Scholar,PIN031958,1065,
DFID,CSC,28/03/2018,Scholar Stipend,Award Costs,Scholar,PIN031959,1065,
DFID,CSC,28/03/2018,Scholar Stipend,Award Costs,Scholar,PIN031960,1306,
DFID,CSC,28/03/2018,Scholar Stipend,Award Costs,Scholar,PIN031962,1065,
DFID,CSC,28/03/2018,Scholar Stipend,Award Costs,Scholar,PIN031963,1065,
DFID,CSC,28/03/2018,Scholar Stipend,Award Costs,Scholar,PIN031964,1065,
DFID,CSC,28/03/2018,Scholar Stipend,Award Costs,Scholar,PIN031965,3195,
DFID,CSC,28/03/2018,Scholar Stipend,Award Costs,Scholar,PIN031966,1065,
DFID,CSC,28/03/2018,Scholar Stipend,Award Costs,Scholar,PIN031967,1306,
DFID,CSC,28/03/2018,Scholar Stipend,Award Costs,Scholar,PIN031968,1065,
DFID,CSC,28/03/2018,Scholar Stipend,Award Costs,Scholar,PIN031969,1065,
DFID,CSC,28/03/2018,Scholar Stipend,Award Costs,Scholar,PIN031970,1065,
DFID,CSC,28/03/2018,Scholar Stipend,Award Costs,Scholar,PIN031971,1065,
DFID,CSC,28/03/2018,Scholar Stipend,Award Costs,Scholar,PIN031972,3918,
DFID,CSC,28/03/2018,Scholar Stipend,Award Costs,Scholar,PIN031973,1065,
DFID,CSC,28/03/2018,Scholar Stipend,Award Costs,Scholar,PIN031974,1065,
DFID,CSC,28/03/2018,Scholar Stipend,Award Costs,Scholar,PIN031975,1306,
DFID,CSC,28/03/2018,Scholar Stipend,Award Costs,Scholar,PIN031976,1306,
DFID,CSC,28/03/2018,Scholar Stipend,Award Costs,Scholar,PIN031977,1065,
DFID,CSC,28/03/2018,Scholar Stipend,Award Costs,Scholar,PIN031978,1065,
DFID,CSC,28/03/2018,Scholar Stipend,Award Costs,Scholar,PIN031979,1306,
DFID,CSC,28/03/2018,Scholar Stipend,Award Costs,Scholar,PIN031980,1065,
DFID,CSC,28/03/2018,Scholar Stipend,Award Costs,Scholar,PIN031981,1065,
DFID,CSC,28/03/2018,Scholar Stipend,Award Costs,Scholar,PIN031982,1065,
DFID,CSC,28/03/2018,Scholar Stipend,Award Costs,Scholar,PIN031983,1065,
DFID,CSC,28/03/2018,Scholar Stipend,Award Costs,Scholar,PIN031984,532.5,
DFID,CSC,28/03/2018,Scholar Stipend,Award Costs,Scholar,PIN031985,1065,
DFID,CSC,28/03/2018,Scholar Stipend,Award Costs,Scholar,PIN031986,1065,
DFID,CSC,28/03/2018,Scholar Stipend,Award Costs,Scholar,PIN031987,1065,
DFID,CSC,28/03/2018,Scholar Stipend,Award Costs,Scholar,PIN031988,1065,
DFID,CSC,28/03/2018,Scholar Stipend,Award Costs,Scholar,PIN031989,855.07,
DFID,CSC,28/03/2018,Scholar Stipend,Award Costs,Scholar,PIN031990,1065,
DFID,CSC,28/03/2018,Scholar Stipend,Award Costs,Scholar,PIN031991,532.5,
DFID,CSC,28/03/2018,Scholar Stipend,Award Costs,Scholar,PIN031992,1065,
DFID,CSC,28/03/2018,Scholar Stipend,Award Costs,Scholar,PIN031993,1065,
DFID,CSC,28/03/2018,Scholar Stipend,Award Costs,Scholar,PIN031994,1065,
DFID,CSC,28/03/2018,Scholar Stipend,Award Costs,Scholar,PIN031995,1065,
DFID,CSC,28/03/2018,Scholar Stipend,Award Costs,Scholar,PIN031996,1065,
DFID,CSC,28/03/2018,Scholar Stipend,Award Costs,Scholar,PIN031997,769.76,
DFID,CSC,28/03/2018,Scholar Stipend,Award Costs,Scholar,PIN031998,1065,
DFID,CSC,28/03/2018,Scholar Stipend,Award Costs,Scholar,PIN031999,1065,
DFID,CSC,28/03/2018,Scholar Stipend,Award Costs,Scholar,PIN032000,1306,
DFID,CSC,28/03/2018,Scholar Stipend,Award Costs,Scholar,PIN032001,1065,
DFID,CSC,28/03/2018,Scholar Stipend,Award Costs,Scholar,PIN032002,1065,
DFID,CSC,28/03/2018,Scholar Stipend,Award Costs,Scholar,PIN032003,1065,
DFID,CSC,28/03/2018,Scholar Stipend,Award Costs,Scholar,PIN032004,1065,
DFID,CSC,28/03/2018,Scholar Stipend,Award Costs,Scholar,PIN032005,532.5,
DFID,CSC,28/03/2018,Scholar Stipend,Award Costs,Scholar,PIN032006,1065,
DFID,CSC,28/03/2018,Scholar Stipend,Award Costs,Scholar,PIN032007,1065,
DFID,CSC,28/03/2018,Scholar Stipend,Award Costs,Scholar,PIN032008,1065,
DFID,CSC,28/03/2018,Scholar Stipend,Award Costs,Scholar,PIN032009,1065,
DFID,CSC,28/03/2018,Scholar Stipend,Award Costs,Scholar,PIN032010,1065,
DFID,CSC,28/03/2018,Scholar Stipend,Award Costs,Scholar,PIN032011,1627,
DFID,CSC,28/03/2018,Scholar Stipend,Award Costs,Scholar,PIN032012,532.5,
DFID,CSC,28/03/2018,Scholar Stipend,Award Costs,Scholar,PIN032013,1065,
DFID,CSC,28/03/2018,Scholar Stipend,Award Costs,Scholar,PIN032014,1065,
DFID,CSC,28/03/2018,Scholar Stipend,Award Costs,Scholar,PIN032015,1065,
DFID,CSC,28/03/2018,Scholar Stipend,Award Costs,Scholar,PIN032016,1065,
DFID,CSC,28/03/2018,Scholar Stipend,Award Costs,Scholar,PIN032017,1065,
DFID,CSC,28/03/2018,Scholar Stipend,Award Costs,Scholar,PIN032018,1306,
DFID,CSC,28/03/2018,Scholar Stipend,Award Costs,Scholar,PIN032019,1065,
DFID,CSC,28/03/2018,Scholar Stipend,Award Costs,Scholar,PIN032020,1065,
DFID,CSC,28/03/2018,Scholar Stipend,Award Costs,Scholar,PIN032021,3195,
DFID,CSC,28/03/2018,Scholar Stipend,Award Costs,Scholar,PIN032022,1306,
DFID,CSC,28/03/2018,Scholar Stipend,Award Costs,Scholar,PIN032023,1065,
DFID,CSC,28/03/2018,Scholar Stipend,Award Costs,Scholar,PIN032024,1306,
DFID,CSC,28/03/2018,Scholar Stipend,Award Costs,Scholar,PIN032025,1065,
DFID,CSC,28/03/2018,Scholar Stipend,Award Costs,Scholar,PIN032026,1306,
DFID,CSC,28/03/2018,Scholar Stipend,Award Costs,Scholar,PIN032027,1065,
DFID,CSC,28/03/2018,Scholar Stipend,Award Costs,Scholar,PIN032028,1306,
DFID,CSC,28/03/2018,Scholar Stipend,Award Costs,Scholar,PIN032029,1065,
DFID,CSC,28/03/2018,Scholar Stipend,Award Costs,Scholar,PIN032030,1306,
DFID,CSC,28/03/2018,Scholar Stipend,Award Costs,Scholar,PIN032031,1065,
DFID,CSC,28/03/2018,Scholar Stipend,Award Costs,Scholar,PIN032032,1065,
DFID,CSC,28/03/2018,Scholar Stipend,Award Costs,Scholar,PIN032033,1065,
DFID,CSC,28/03/2018,Scholar Stipend,Award Costs,Scholar,PIN032034,1065,
DFID,CSC,28/03/2018,Scholar Stipend,Award Costs,Scholar,PIN032035,1065,
DFID,CSC,28/03/2018,Scholar Stipend,Award Costs,Scholar,PIN032036,532.5,
DFID,CSC,28/03/2018,Scholar Stipend,Award Costs,Scholar,PIN032037,1065,
DFID,CSC,28/03/2018,Scholar Stipend,Award Costs,Scholar,PIN032038,1065,
DFID,CSC,28/03/2018,Scholar Stipend,Award Costs,Scholar,PIN032039,1065,
DFID,CSC,28/03/2018,Scholar Stipend,Award Costs,Scholar,PIN032040,1065,
DFID,CSC,28/03/2018,Scholar Stipend,Award Costs,Scholar,PIN032041,1065,
DFID,CSC,28/03/2018,Scholar Stipend,Award Costs,Scholar,PIN032042,1065,
DFID,CSC,28/03/2018,Scholar Stipend,Award Costs,Scholar,PIN032043,1065,
DFID,CSC,28/03/2018,Scholar Stipend,Award Costs,Scholar,PIN032044,1065,
DFID,CSC,28/03/2018,Scholar Stipend,Award Costs,Scholar,PIN032045,1065,
DFID,CSC,28/03/2018,Scholar Stipend,Award Costs,Scholar,PIN032046,1306,
DFID,CSC,28/03/2018,Scholar Stipend,Award Costs,Scholar,PIN032047,1065,
DFID,CSC,28/03/2018,Scholar Stipend,Award Costs,Scholar,PIN032048,1065,
DFID,CSC,28/03/2018,Scholar Stipend,Award Costs,Scholar,PIN032049,1065,
DFID,CSC,28/03/2018,Scholar Stipend,Award Costs,Scholar,PIN032050,1065,
DFID,CSC,28/03/2018,Scholar Stipend,Award Costs,Scholar,PIN032051,1065,
DFID,CSC,28/03/2018,Scholar Stipend,Award Costs,Scholar,PIN032052,1065,
DFID,CSC,28/03/2018,Scholar Stipend,Award Costs,Scholar,PIN032053,1065,
DFID,CSC,28/03/2018,Scholar Stipend,Award Costs,Scholar,PIN032054,1306,
DFID,CSC,28/03/2018,Scholar Stipend,Award Costs,Scholar,PIN032055,1065,
DFID,CSC,28/03/2018,Scholar Stipend,Award Costs,Scholar,PIN032056,1306,
DFID,CSC,28/03/2018,Scholar Stipend,Award Costs,Scholar,PIN032057,3195,
DFID,CSC,28/03/2018,Scholar Stipend,Award Costs,Scholar,PIN032058,1065,
DFID,CSC,28/03/2018,Scholar Stipend,Award Costs,Scholar,PIN032059,1065,
DFID,CSC,28/03/2018,Scholar Stipend,Award Costs,Scholar,PIN032060,1306,
DFID,CSC,28/03/2018,Scholar Stipend,Award Costs,Scholar,PIN032061,1065,
DFID,CSC,28/03/2018,Scholar Stipend,Award Costs,Scholar,PIN032062,1065,
DFID,CSC,28/03/2018,Scholar Stipend,Award Costs,Scholar,PIN032063,1306,
DFID,CSC,28/03/2018,Scholar Stipend,Award Costs,Scholar,PIN032064,3918,
DFID,CSC,28/03/2018,Scholar Stipend,Award Costs,Scholar,PIN032065,1065,
DFID,CSC,28/03/2018,Scholar Stipend,Award Costs,Scholar,PIN032066,1065,
DFID,CSC,28/03/2018,Scholar Stipend,Award Costs,Scholar,PIN032067,1065,
DFID,CSC,28/03/2018,Scholar Stipend,Award Costs,Scholar,PIN032068,1306,
DFID,CSC,28/03/2018,Scholar Stipend,Award Costs,Scholar,PIN032069,1065,
DFID,CSC,28/03/2018,Scholar Stipend,Award Costs,Scholar,PIN032070,1065,
DFID,CSC,28/03/2018,Scholar Stipend,Award Costs,Scholar,PIN032071,3195,
DFID,CSC,28/03/2018,Scholar Stipend,Award Costs,Scholar,PIN032072,1065,
DFID,CSC,28/03/2018,Scholar Stipend,Award Costs,Scholar,PIN032073,1065,
DFID,CSC,28/03/2018,Scholar Stipend,Award Costs,Scholar,PIN032074,1065,
DFID,CSC,28/03/2018,Scholar Stipend,Award Costs,Scholar,PIN032075,1306,
DFID,CSC,28/03/2018,Scholar Stipend,Award Costs,Scholar,PIN032076,1065,
DFID,CSC,28/03/2018,Scholar Stipend,Award Costs,Scholar,PIN032077,1065,
DFID,CSC,28/03/2018,Scholar Stipend,Award Costs,Scholar,PIN032079,1065,
DFID,CSC,28/03/2018,Scholar Stipend,Award Costs,Scholar,PIN032080,1065,
DFID,CSC,28/03/2018,Scholar Stipend,Award Costs,Scholar,PIN032081,1065,
DFID,CSC,28/03/2018,Scholar Stipend,Award Costs,Scholar,PIN032082,1306,
DFID,CSC,28/03/2018,Scholar Stipend,Award Costs,Scholar,PIN032083,1065,
DFID,CSC,28/03/2018,Scholar Stipend,Award Costs,Scholar,PIN032084,1065,
DFID,CSC,28/03/2018,Scholar Stipend,Award Costs,Scholar,PIN032085,1065,
DFID,CSC,28/03/2018,Scholar Stipend,Award Costs,Scholar,PIN032086,1065,
DFID,CSC,28/03/2018,Scholar Stipend,Award Costs,Scholar,PIN032087,1065,
DFID,CSC,28/03/2018,Scholar Stipend,Award Costs,Scholar,PIN032088,1014.7,
DFID,CSC,28/03/2018,Scholar Stipend,Award Costs,Scholar,PIN032089,1306,
DFID,CSC,28/03/2018,Scholar Stipend,Award Costs,Scholar,PIN032090,3195,
DFID,CSC,28/03/2018,Scholar Stipend,Award Costs,Scholar,PIN032091,3195,
DFID,CSC,28/03/2018,Scholar Stipend,Award Costs,Scholar,PIN032092,3195,
DFID,CSC,28/03/2018,Scholar Stipend,Award Costs,Scholar,PIN032093,1065,
DFID,CSC,28/03/2018,Scholar Stipend,Award Costs,Scholar,PIN032094,1065,
DFID,CSC,28/03/2018,Scholar Stipend,Award Costs,Scholar,PIN032095,3195,
DFID,CSC,28/03/2018,Scholar Stipend,Award Costs,Scholar,PIN032096,1065,
DFID,CSC,28/03/2018,Scholar Stipend,Award Costs,Scholar,PIN032097,1065,
DFID,CSC,28/03/2018,Scholar Stipend,Award Costs,Scholar,PIN032098,1065,
DFID,CSC,28/03/2018,Scholar Stipend,Award Costs,Scholar,PIN032099,1065,
DFID,CSC,28/03/2018,Scholar Stipend,Award Costs,Scholar,PIN032100,791.11,
DFID,CSC,28/03/2018,Scholar Stipend,Award Costs,Scholar,PIN032101,3918,
DFID,CSC,28/03/2018,Scholar Stipend,Award Costs,Scholar,PIN032102,3195,
DFID,CSC,28/03/2018,Scholar Allowances,Award Costs,Scholar,PIN032114,1067.81,
DFID,CSC,28/03/2018,Scholar Allowances,Award Costs,Scholar,PIN032124,1247.06,
DFID,CSC,28/03/2018,Scholar Allowances,Award Costs,Scholar,PIN032129,1023,
DFID,CSC,28/03/2018,Scholar Allowances,Award Costs,Scholar,PIN032130,569,
DFID,CSC,28/03/2018,Scholar Allowances,Award Costs,Scholar,PIN032133,844.99,
DFID,CSC,28/03/2018,Scholar Allowances,Award Costs,Scholar,PIN032142,732.14,
DFID,CSC,28/03/2018,Scholar Allowances,Award Costs,Scholar,PIN032152,2173.85,
DFID,CSC,28/03/2018,Scholar Allowances,Award Costs,Scholar,PIN032154,1737.13,
DFID,CSC,28/03/2018,Scholar Allowances,Award Costs,Scholar,PIN032181,687,
DFID,CSC,28/03/2018,Scholar Allowances,Award Costs,Scholar,PIN032189,681,
DFID,CSC,28/03/2018,Scholar Allowances,Award Costs,Scholar,PIN032204,717.09,
DFID,CSC,28/03/2018,Scholar Allowances,Award Costs,Scholar,PIN032216,-814.9,
DFID,CSC,28/03/2018,Scholar Allowances,Award Costs,Scholar,PIN032221,837.47,
DFID,CSC,28/03/2018,Scholar Allowances,Award Costs,Scholar,PIN032227,687,
DFID,CSC,28/03/2018,Scholar Allowances,Award Costs,Scholar,PIN032244,732.14,
DFID,CSC,28/03/2018,Scholar Allowances,Award Costs,Scholar,PIN032255,724.61,
DFID,CSC,28/03/2018,Scholar Allowances,Award Costs,Scholar,PIN032270,687,
DFID,CSC,28/03/2018,Scholar Allowances,Award Costs,Scholar,PIN032281,687,
DFID,CSC,29/03/2018,Scholar Engagement,Programme Costs,Scholar,PIN032305,500,
DFID,CSC,29/03/2018,Scholar Allowances,Award Costs,Scholar,PIN032311,600,
DFID,CSC,29/03/2018,Tuition Fee,Award Costs,University of Liverpool,PIN032322,73847,Tuition fees for 15 scholars
DFID,CSC,29/03/2018,Tuition Fee,Award Costs,Queen Mary University of London,PIN032323,147300,Tuition fees for 27 scholars
DFID,CSC,29/03/2018,Tuition Fee,Award Costs,University of St  Andrews,PIN032324,117000,Tuition fees for 13 scholars
DFID,CSC,29/03/2018,Tuition Fee,Award Costs,University of St  Andrews,PIN032325,90000,Tuition fees for 10 scholars
DFID,CSC,29/03/2018,Tuition Fee,Award Costs,The Open University,PIN032326,70432,Tuition fees for 12 scholars
DFID,CSC,29/03/2018,Tuition Fee,Award Costs,The Open University,PIN032327,44683,Tuition fees for 14 scholars
DFID,CSC,29/03/2018,Tuition Fee,Award Costs,Bangor University,PIN032328,4521,
DFID,CSC,29/03/2018,Tuition Fee,Award Costs,Bangor University,PIN032329,4521,
DFID,CSC,29/03/2018,Tuition Fee,Award Costs,Bangor University,PIN032330,9042,
DFID,CSC,29/03/2018,Immigration Health Surcharge,Award Costs,Scholar,PIN032331,600,
DFID,CSC,29/03/2018,Scholar Allowances,Award Costs,Scholar,PIN032332,600,
BEIS,CSC,29/03/2018,Award Support Costs,Award Costs,Lancaster University,PIN032333,2500,
DFID,CSC,29/03/2018,Engagement,Admin Costs,Association of Commonwealth Univs,PIN032334,1528,
DFID,CSC,29/03/2018,Engagement,Admin Costs,Association of Commonwealth Univs,PIN032334,7640,
DFE,CSC,29/03/2018,Secretariat Service Provision,Programme Costs,Association of Commonwealth Univs,PIN032335,1666.67,
DFE,CSC,29/03/2018,Secretariat Service Provision,Programme Costs,Association of Commonwealth Univs,PIN032335,8333.33,
DFID,CSC,29/03/2018,Commission Meetings,Admin Costs,Commissioner,PIN032338,500,
DFID,CSC,29/03/2018,Commission Meetings,Admin Costs,Commission Chair,PIN032339,500,
DFID,CSC,29/03/2018,Commission Meetings,Admin Costs,Commissioner,PIN032340,750,
DFID,CSC,29/03/2018,Commission Meetings,Admin Costs,Commissioner,PIN032341,500,
DFID,CSC,29/03/2018,Commission Meetings,Admin Costs,Commissioner,PIN032342,500,
DFID,CSC,29/03/2018,Commission Meetings,Admin Costs,Commissioner,PIN032343,500,
DFID,CSC,29/03/2018,Commission Meetings,Admin Costs,Commissioner,PIN032344,750,
DFE,CSC,29/03/2018,Tuition Fee,Award Costs,Queen Mary University of London,PIN032346,19500,
DFE,CSC,29/03/2018,Award Support Costs,Award Costs,Queen Mary University of London,PIN032347,5500,
DFE,CSC,29/03/2018,Award Support Costs,Award Costs,University of Oxford,PIN032348,6000,
DFE,CSC,29/03/2018,Scholar Travel,Award Costs,University of Oxford,PIN032348,547.11,
DFE,CSC,29/03/2018,Scholar Allowances,Award Costs,University of Oxford,PIN032348,1800,
DFE,CSC,29/03/2018,Scholar Allowances,Award Costs,University of Oxford,PIN032348,560,
DFE,CSC,29/03/2018,Scholar Stipend,Award Costs,University of Oxford,PIN032348,55380,Tuition fees for 5 scholars
DFE,CSC,29/03/2018,Tuition Fee,Award Costs,University of Oxford,PIN032348,4028,
DFE,CSC,29/03/2018,Tuition Fee,Award Costs,University of Oxford,PIN032348,24525,
BEIS,CSC,29/03/2018,Secretariat Service Provision,Programme Costs,Association of Commonwealth Univs,PIN032349,18280,
BEIS,CSC,29/03/2018,Secretariat Service Provision,Programme Costs,Association of Commonwealth Univs,PIN032349,91400,
DFID,CSC,29/03/2018,Service Provision,Programme Costs,The British Council,PIN032350,138.23,
DFID,CSC,29/03/2018,Alumni Engagement,Programme Costs,The British Council,PIN032350,20423.96,
DFID,CSC,29/03/2018,Service Provision,Programme Costs,The British Council,PIN032350,3771.6,
DFID,CSC,29/03/2018,Alumni Engagement,Programme Costs,The British Council,PIN032350,18858,
DFID,CSC,29/03/2018,Service Provision,Admin Costs,The British Council,PIN032350,874.8,
DFID,CSC,29/03/2018,Service Provision,Admin Costs,The British Council,PIN032350,4374,
DFID,CSC,26/03/2018,Scholar Stipend,Award Costs,Scholar,NOM000698,-4069.75,
DFID,CSC,29/03/2018,Bank Charges,Award Costs,Mastercard Prepaid Management Services Ltd,PIN032353,181.88,
DFID,CSC,29/03/2018,Visa Costs,Award Costs,Scholar,PIN032353,109,
BEIS,CSC,29/03/2018,Visa Costs,Award Costs,Scholar,PIN032353,52,
BEIS,CSC,29/03/2018,Visa Costs,Award Costs,Scholar,PIN032353,17,
BEIS,CSC,29/03/2018,Scholar Stipend,Award Costs,Scholar,PIN032353,5291.55,
BEIS,CSC,29/03/2018,Immigration Health Surcharge,Award Costs,Scholar,PIN032353,200,
BEIS,CSC,29/03/2018,Visa Costs,Award Costs,Scholar,PIN032353,235,
BEIS,CSC,29/03/2018,Scholar Stipend,Award Costs,Scholar,PIN032353,5131.2,
BEIS,CSC,29/03/2018,Immigration Health Surcharge,Award Costs,Scholar,PIN032353,400,
BEIS,CSC,29/03/2018,Visa Costs,Award Costs,Scholar,PIN032353,235,
BEIS,CSC,29/03/2018,Scholar Stipend,Award Costs,Scholar,PIN032353,5772.6,
BEIS,CSC,29/03/2018,Immigration Health Surcharge,Award Costs,Scholar,PIN032353,400,
BEIS,CSC,29/03/2018,Visa Costs,Award Costs,Scholar,PIN032353,235,
BEIS,CSC,29/03/2018,Visa Costs,Award Costs,Scholar,PIN032353,109,
DFID,CSC,29/03/2018,Bank Charges,Award Costs,Mastercard Prepaid Management Services Ltd,PIN032354,63.69,
BEIS,CSC,29/03/2018,Visa Costs,Award Costs,Scholar,PIN032354,184,
DFID,CSC,29/03/2018,Scholar Allowances,Award Costs,Scholar,PIN032354,400,
DFID,CSC,29/03/2018,Visa Costs,Award Costs,Scholar,PIN032354,90,
BEIS,CSC,29/03/2018,Visa Costs,Award Costs,Scholar,PIN032354,75,
BEIS,CSC,29/03/2018,Scholar Stipend,Award Costs,Scholar,PIN032354,5184.65,
BEIS,CSC,29/03/2018,Immigration Health Surcharge,Award Costs,Scholar,PIN032354,200,
BEIS,CSC,29/03/2018,Visa Costs,Award Costs,Scholar,PIN032354,235,
DFID,CSC,29/03/2018,Postage & Courier,Programme Costs,DHL,NOM000699,44.99,
DFID,CSC,29/03/2018,Postage & Courier,Admin Costs,DHL,NOM000699,68.29,
DFID,CSC,29/03/2018,Postage & Courier,Award Costs,DHL,NOM000699,46.41,
BEIS,CSC,29/03/2018,Postage & Courier,Award Costs,DHL,NOM000699,479.2,
DFID,CSC,29/03/2018,Postage & Courier,Programme Costs,DHL,NOM000699,481.41,
